Workbook

Sheet User Guidance
B2: PCN Workforce Planning Template 2020/21: Guidance notes for completion This workforce planning template is designed to support primary care workforce planning activity at Primary Care Network (PCN) level. Two parts of the template are included (see tabs 'Part A' and 'Part B'), which should be completed in line with the expected timescales set out below. We appreciate that PCNs submitted a previous version of the form for 2020/21 in August. We are asking that the plans for 2020/21 are re-entered into this updated template. This is to provide an updated view of PCN recruitment plans, reflecting the addition of the Nursing Associate and Trainee Nursing Associate roles from October 2020, and any changes in the 2020/21 plans agreed since that earlier submission. The purpose of collecting this data is to support internal planning and so it is not anticipated that the data provided will be shared outside the NHS. This is in line with requirements set out in the Network Contract Directed Enhanced Service (DES) Contract Specification 2020/21 – PCN Entitlements and Requirements PCN Network (Section 6.5). A worked example of the template is available at: https://future.nhs.uk/primarycareworkforce/grouphome. Part A covers ARRS recruitment only. Working closely with their CCG and the local primary care training hub, PCNs should use this to indicate the number of staff they intend to recruit through the scheme in 2020/21, as well as emerging recruitment intentions for 2021/22 and beyond to support workforce planning activity. For 2020/21, the template will calculate the indicative spend against the financial allocation available to the PCN, and highlight any remaining allocation that could be lost to the PCN if not used. Once submitted, PCNs are free to change their workforce plan at any stage. To support local flexibility, the process for submission will be defined and communicated by the receiving CCG. Part B covers indicative recruitment intentions for the wider team. In light of the COVID-19 response, use of this section is voluntary to support discussions between the PCN and their training hub on available local supply, and the education, clinical supervision and ongoing career support and development needs of all staff groups within the PCN team. This will include retention and the support available to PCNs to introduce new roles and ways of working. CCGs and systems will similarly use PCN workforce plans to consider support required for recruitment activity, including opportunities to broker arrangements across PCNs. ICSs, STPs and CCGs may additionally agree local processes to make use of the tool for workforce planning. Completion of this section would provide a more comprehensive view of the Primary Care Workforce Planning intentions of the systems, and so facilitate the provision of a system-wide picture in this regard. Expected timescales for this stage of the process (please review against latest guidance in light of ongoing COVID-19 response) As soon as possible, taking into account COVID-19 response: Lead CCGs and primary care training hubs to liaise with PCNs (and other local health, social and community care stakeholders) to discuss their recruitment plans for 2020/21. In consultation with their training hub, CCG and other stakeholders, PCNs should develop and adjust their workforce plans as needed going forwards, seeking to maximise recruitment through the ARRS scheme. From 01 April, taking into account latest NHS Digital guidance during COVID-19 response: PCNs / practices to update the National Workforce Reporting System with workforce changes on a monthly basis, in line with Network Contract DES. By 31 October: PCNs to provide indicative recruitment intentions for 2021/22 and beyond under the ARRS scheme to their CCG utilising the PCN Template. Each PCN should submit one version of their total recrutiment intentions to their agreed lead CCG. By 9 November: CCGs to provide aggregated returns to their region and copied to the Primary Care workforce Team, utilising the CCG Aggregation Tool provided.. By 30 November: CCGs to agree an aggregate local plan with PCN clinical directors and consider amounts for in-year redistribution to other PCNs (if required), arranging provision of amended PCN returns if appropriate and submitting an updated CCG return using the CCG Aggregation Tool.

Sheet PART A
C2: Part A (Required for all PCNs)
C6: PCN Code: | K6: Name of PCN:
C12: PCN Name: | K12: PCN Clinical Director:
C14: PCN Code: | K14: Training Hub Contact:
C16: CCG: | E16: =IF(E12="","",VLOOKUP(E14,'Weighted Populations'!D2:F1266,3,FALSE)) ->  | K16: Last updated:
C19: Allocation available to the PCN under the Additional Roles Reimbursement Scheme
I21: PCN weighted population as at January 2020: | K21: =IF(E12<>"",VLOOKUP(E12,'Weighted Populations'!B2:C1266,2,FALSE),0) -> 0
I23: PCN-level ARRS Allocation 2020/21: | K23: =IF(K21>0,K21*7.131,"") -> 
C26: Recruitment intentions for 2020/21 through the Additional Roles Reimbursement Scheme (due by 31 October)
C28: This part was submitted in August and PCNs are thanked for that submission. This updated template needs to be completed and provides the means to include the Nursing Associates and Trainee Nursing Associates, and any changes agreed within systems since the 31 August submission. This section sets out all additional roles available through the scheme in the forthcoming year. Enter the full time equivalent (FTE) number of people in each role the PCN intends to recruit in the table below, based on a 37.5 standard working week. The template splits recruitment by quarter to allow a more accurate calculation of spend against the available allocation. If the PCN anticipates the loss of someone recruited through the scheme during the year (for example, because a role is changing to be split across neighbouring PCNs), this should be entered as a negative figure. Note that the indicative spend calculation is based on the maximum reimbursement amount for each staff role, and assumes that individuals are in place for the whole of the quarter for which they are entered into the table.
G30: Recruitment intentions for 2020/21
E31: Recruited during 2019/20 | G31: Quarter 1 April - Jun | I31: Quarter 2 Jul - Sep | K31: Quarter 3 Oct - Dec | M31: Quarter 4 Jan - Mar | O31: Additional FTE as at March 2021 | Q31: Indicative spend per role 2020/21
C32: Clinical pharmacists | O32: =SUM(E32:M32) -> 0 | Q32: =(E32*'Supporting Information'!E11)+(G32*'Supporting Information'!E11)+(I32*'Supporting Information'!H11)+(K32*'Supporting Information'!K11)+(M32*'Supporting Information'!N11) -> 0
C34: Nursing Associates | O34: =SUM(E34:M34) -> 0 | Q34: =(G34*'Supporting Information'!E13)+(I34*'Supporting Information'!H13)+(K34*'Supporting Information'!K13)+(M34*'Supporting Information'!N13) -> 0
C36: Trainee Nursing Associates | O36: =SUM(E36:M36) -> 0 | Q36: =(G36*'Supporting Information'!E15)+(I36*'Supporting Information'!H15)+(K36*'Supporting Information'!K15)+(M36*'Supporting Information'!N15) -> 0
C38: Social prescribing link workers | O38: =SUM(E38:M38) -> 0 | Q38: =(E38*'Supporting Information'!E17)+(G38*'Supporting Information'!E17)+(I38*'Supporting Information'!H17)+(K38*'Supporting Information'!K17)+(M38*'Supporting Information'!N17) -> 0
C40: First contact physiotherapists | O40: =SUM(G40:M40) -> 0 | Q40: =(G40*'Supporting Information'!E19)+(I40*'Supporting Information'!H19)+(K40*'Supporting Information'!K19)+(M40*'Supporting Information'!N19) -> 0
C42: Physician associates | O42: =SUM(G42:M42) -> 0 | Q42: =(G42*'Supporting Information'!E21)+(I42*'Supporting Information'!H21)+(K42*'Supporting Information'!K21)+(M42*'Supporting Information'!N21) -> 0
C44: Pharmacy technicians | O44: =SUM(G44:M44) -> 0 | Q44: =(G44*'Supporting Information'!E23)+(I44*'Supporting Information'!H23)+(K44*'Supporting Information'!K23)+(M44*'Supporting Information'!N23) -> 0
C46: Occupational therapists | O46: =SUM(G46:M46) -> 0 | Q46: =(G46*'Supporting Information'!E27)+(I46*'Supporting Information'!H27)+(K46*'Supporting Information'!K27)+(M46*'Supporting Information'!N27) -> 0
C48: Dietitians | O48: =SUM(G48:M48) -> 0 | Q48: =(G48*'Supporting Information'!E29)+(I48*'Supporting Information'!H29)+(K48*'Supporting Information'!K29)+(M48*'Supporting Information'!N29) -> 0
C50: Podiatrists | O50: =SUM(G50:M50) -> 0 | Q50: =(G50*'Supporting Information'!E31)+(I50*'Supporting Information'!H31)+(K50*'Supporting Information'!K31)+(M50*'Supporting Information'!N31) -> 0
C52: Health and wellbeing coaches | O52: =SUM(G52:M52) -> 0 | Q52: =(G52*'Supporting Information'!E33)+(I52*'Supporting Information'!H33)+(K52*'Supporting Information'!K33)+(M52*'Supporting Information'!N33) -> 0
C54: Care co-ordinators | O54: =SUM(G54:M54) -> 0 | Q54: =(G54*'Supporting Information'!E35)+(I54*'Supporting Information'!H35)+(K54*'Supporting Information'!K35)+(M54*'Supporting Information'!N35) -> 0
M56: TOTAL: | O56: =SUM(O32:O54) -> 0 | Q56: =SUM(Q32:Q54) -> 0
M57: Amount lost to PCN: | Q57: =IF(ISNUMBER(K23),K23-Q56,0) -> 0
C61: Indicative intentions for 2021/22 to 2023/24 (due by 31st October 2020)
C63: Lastly, enter emerging recruitment intentions (reflecting perceived demand) across all staff groups as a whole figure for each remaining year of the GP contract deal. CCGs will share this information to support demand and supply modelling at local, system, regional and national level. Further detail for each role is set out on the 'Supporting Information' tab.
E65: 2020/21 | G65: 2021/22 | I65: 2022/23 | K65: 2023/24 | M65: Position as at March 2024
C67: Clinical pharmacists | E67: =O32 -> 0 | M67: =SUM(E67:K67) -> 0
C69: Nursing Associates | E69: =O34 -> 0 | M69: =SUM(E69:K69) -> 0
C71: Trainee Nursing Associates | E71: =O36 -> 0 | M71: =SUM(E71:K71) -> 0
C73: Social prescribing link workers | E73: =O38 -> 0 | M73: =SUM(E73:K73) -> 0
C75: First contact physiotherapists | E75: =O40 -> 0 | M75: =SUM(E75:K75) -> 0
C77: Physician associates | E77: =O42 -> 0 | M77: =SUM(E77:K77) -> 0
C79: Pharmacy technicians | E79: =O44 -> 0 | M79: =SUM(E79:K79) -> 0
C81: Paramedics | E81: - | M81: =SUM(G81:K81) -> 0
C83: Occupational therapists | E83: =O46 -> 0 | M83: =SUM(E83:K83) -> 0
C85: Dietitians | E85: =O48 -> 0 | M85: =SUM(E85:K85) -> 0
C87: Podiatrists | E87: =O50 -> 0 | M87: =SUM(E87:K87) -> 0
C89: Health and wellbeing coaches | E89: =O52 -> 0 | M89: =SUM(E89:K89) -> 0
C91: Care co-ordinators | E91: =O54 -> 0 | M91: =SUM(E91:K91) -> 0
C93: Mental health practitioners | E93: - | M93: =SUM(G93:K93) -> 0
K95: Indicative total recruitment as at end March 2024: | M95: =SUM(M66:M94) -> 0
C99: Additional comments (please ensure you do not include any personally identifiable information in this section).
C100: Requests for support to progress recruitment activity (e.g. advertising posts, supporting recruitment activity, brokering recruitment opportunities with neighbouring PCNs):
C108: Any other comments:

Sheet Part A - hidden (hidden)
A1: Name of PCN: | B1: ='PART A'!E12 -> 
A2: Org Code (if known): | B2: ='PART A'!E14 -> 
A3: Last updated: | B3: ='PART A'!M16 -> 00:00:00
A4: PCN Clinical Director: | B4: ='PART A'!M12 -> 0
A5: Training Hub Contact: | B5: ='PART A'!M14 -> 0
A6: Enter the PCN weighted population as at January 2020 (to be sourced from CCG): | B6: ='PART A'!K21 -> 0
B10: Recruited during 2019/20 | C10: Quarter 1 April - Jun | D10: Quarter 2 Jul - Sep | E10: Quarter 3 Oct - Dec | F10: Quarter 4 Jan - Mar
A11: Clinical pharmacists | B11: ='PART A'!E32 -> 0 | C11: ='PART A'!G32 -> 0 | D11: ='PART A'!I32 -> 0 | E11: ='PART A'!K32 -> 0 | F11: ='PART A'!M32 -> 0
A12: Social prescribing link workers | B12: ='PART A'!E38 -> 0 | C12: ='PART A'!G38 -> 0 | D12: ='PART A'!I38 -> 0 | E12: ='PART A'!K38 -> 0 | F12: ='PART A'!M38 -> 0
A13: First contact physiotherapists | C13: ='PART A'!G40 -> 0 | D13: ='PART A'!I40 -> 0 | E13: ='PART A'!K40 -> 0 | F13: ='PART A'!M40 -> 0
A14: Physician associates | C14: ='PART A'!G42 -> 0 | D14: ='PART A'!I42 -> 0 | E14: ='PART A'!K42 -> 0 | F14: ='PART A'!M42 -> 0
A15: Pharmacy technicians | C15: ='PART A'!G44 -> 0 | D15: ='PART A'!I44 -> 0 | E15: ='PART A'!K44 -> 0 | F15: ='PART A'!M44 -> 0
A16: Occupational therapists | C16: ='PART A'!G46 -> 0 | D16: ='PART A'!I46 -> 0 | E16: ='PART A'!K46 -> 0 | F16: ='PART A'!M46 -> 0
A17: Dietitians | C17: ='PART A'!G48 -> 0 | D17: ='PART A'!I48 -> 0 | E17: ='PART A'!K48 -> 0 | F17: ='PART A'!M48 -> 0
A18: Podiatrists | C18: ='PART A'!G50 -> 0 | D18: ='PART A'!I50 -> 0 | E18: ='PART A'!K50 -> 0 | F18: ='PART A'!M50 -> 0
A19: Health and wellbeing coaches | C19: ='PART A'!G52 -> 0 | D19: ='PART A'!I52 -> 0 | E19: ='PART A'!K52 -> 0 | F19: ='PART A'!M52 -> 0
A20: Care co-ordinators | C20: ='PART A'!G54 -> 0 | D20: ='PART A'!I54 -> 0 | E20: ='PART A'!K54 -> 0 | F20: ='PART A'!M54 -> 0
B23: 2021/22 | C23: 2022/23 | D23: 2023/24
A25: Clinical pharmacists | B25: ='PART A'!G67 -> 0 | C25: ='PART A'!I67 -> 0 | D25: ='PART A'!K67 -> 0
A26: Social prescribing link workers | B26: ='PART A'!G73 -> 0 | C26: ='PART A'!I73 -> 0 | D26: ='PART A'!K73 -> 0
A27: First contact physiotherapists | B27: ='PART A'!G75 -> 0 | C27: ='PART A'!I75 -> 0 | D27: ='PART A'!K75 -> 0
A28: Physician associates | B28: ='PART A'!G77 -> 0 | C28: ='PART A'!I77 -> 0 | D28: ='PART A'!K77 -> 0
A29: Pharmacy technicians | B29: ='PART A'!G79 -> 0 | C29: ='PART A'!I79 -> 0 | D29: ='PART A'!K79 -> 0
A30: Community paramedics | B30: ='PART A'!G81 -> 0 | C30: ='PART A'!I81 -> 0 | D30: ='PART A'!K81 -> 0
A31: Occupational therapists | B31: ='PART A'!G83 -> 0 | C31: ='PART A'!I83 -> 0 | D31: ='PART A'!K83 -> 0
A32: Dietitians | B32: ='PART A'!G85 -> 0 | C32: ='PART A'!I85 -> 0 | D32: ='PART A'!K85 -> 0
A33: Podiatrists | B33: ='PART A'!G87 -> 0 | C33: ='PART A'!I87 -> 0 | D33: ='PART A'!K87 -> 0
A34: Health and wellbeing coaches | B34: ='PART A'!G89 -> 0 | C34: ='PART A'!I89 -> 0 | D34: ='PART A'!K89 -> 0
A35: Care co-ordinators | B35: ='PART A'!G91 -> 0 | C35: ='PART A'!I91 -> 0 | D35: ='PART A'!K91 -> 0
A36: Mental health practitioners | B36: ='PART A'!G93 -> 0 | C36: ='PART A'!I93 -> 0 | D36: ='PART A'!K93 -> 0
A39: Requests for support to progress recruitment activity (e.g. advertising posts, supporting recruitment activity, brokering recruitment opportunities with neighbouring PCNs): | B39: ='PART A'!C101 -> 0
A40: Any other comments: | B40: ='PART A'!C109 -> 0

Sheet PART B
C3: Part B (Voluntary for all PCNs)
C7: ='PART A'!C12 -> PCN Name: | E7: ='PART A'!E12:G12 ->  | K7: ='PART A'!K12 -> PCN Clinical Director: | M7: ='PART A'!M12:O12 -> 0
C9: ='PART A'!C14 -> PCN Code: | E9: ='PART A'!E14:G14 ->  | K9: ='PART A'!K14 -> Training Hub Contact: | M9: ='PART A'!M14:O14 -> 0
C11: ='PART A'!K16 -> Last updated:
C15: Recruitment intentions for 2020/21 across the wider PCN team
C17: PCNs can now enter additional information on planned recruitment for 2020/21 across the wider team to support skills mix planning. This will support discussions with the primary care training hub to plan for the education, supervision and career support needs of the whole multi-disciplinary team. It will also feed into the development of recruitment and retention initiatives at CCG and system level. The starting position as at end March 2020 should reflect latest workforce information provided by the PCN and its member practices to the National Workforce Reporting System. Numbers should be entered in full time equivalent (FTE) terms, as per Part A.
E18: Staff numbers as at March 2020 | G18: Quarter 1 April - Jun | I18: Quarter 2 Jul - Sep | K18: Quarter 3 Oct - Dec | M18: Quarter 4 Jan - Mar | O18: Position as at March 2021
C20: GPs (excluding registrars and locums) | O20: =SUM(E20:M20) -> 0
C22: Nurses | O22: =SUM(E22:M22) -> 0
E24: Of these, how many do you anticipate will be:
E26: …advanced nurse practitioners | O26: =SUM(G26:M26) -> 0
C28: PCN Clinical Directors | O28: =SUM(E28:M28) -> 0
C30: Other direct patient care staff (outside of ARRS) | O30: =SUM(E30:M30) -> 0
C32: Non-clinical / admin roles | O32: =SUM(E32:M32) -> 0
C37: Indicative intentions for the remainder of the five year GP contract deal
C39: Lastly, enter emerging recruitment intentions (including perceived demand) across the same staff groups for each remaining year of the GP contract deal. CCGs will share this information to support demand and supply modelling at local, system, regional and national level. Information already entered for 2020/21 recruitment, and recruitment under the ARRS scheme, will automatically feed through to this section.
E41: 2020/21 | G41: 2021/22 | I41: 2022/23 | K41: 2023/24 | M41: Position as at March 2024
C43: GPs (excluding registrars and locums) | E43: =O20 -> 0 | M43: =SUM(E43:K43) -> 0
C46: Nurses | E46: =O22 -> 0 | M46: =SUM(E46:K46) -> 0
C49: Clinical pharmacists | E49: ='PART A'!O32 -> 0 | G49: ='PART A'!G67 -> 0 | I49: ='PART A'!I67 -> 0 | K49: ='PART A'!K67 -> 0 | M49: =SUM(E49:K49) -> 0
C51: Nursing Associates | E51: ='PART A'!O34 -> 0 | G51: ='PART A'!G69 -> 0 | I51: ='PART A'!I69 -> 0 | K51: ='PART A'!K69 -> 0 | M51: =SUM(E51:K51) -> 0
C53: Trainee Nursing Associates | E53: ='PART A'!O36 -> 0 | G53: ='PART A'!G71 -> 0 | I53: ='PART A'!I71 -> 0 | K53: ='PART A'!K71 -> 0 | M53: =SUM(E53:K53) -> 0
C55: Social prescribing link workers | E55: ='PART A'!O38 -> 0 | G55: ='PART A'!G73 -> 0 | I55: ='PART A'!I73 -> 0 | K55: ='PART A'!K73 -> 0 | M55: =SUM(E55:K55) -> 0
C57: First contact physiotherapists | E57: ='PART A'!O40 -> 0 | G57: ='PART A'!G75 -> 0 | I57: ='PART A'!I75 -> 0 | K57: ='PART A'!K75 -> 0 | M57: =SUM(E57:K57) -> 0
C59: Physician associates | E59: ='PART A'!O42 -> 0 | G59: ='PART A'!G77 -> 0 | I59: ='PART A'!I77 -> 0 | K59: ='PART A'!K77 -> 0 | M59: =SUM(E59:K59) -> 0
C61: Pharmacy technicians | E61: ='PART A'!O44 -> 0 | G61: ='PART A'!G79 -> 0 | I61: ='PART A'!I79 -> 0 | K61: ='PART A'!K79 -> 0 | M61: =SUM(E61:K61) -> 0
C63: Paramedics | G63: ='PART A'!G81 -> 0 | I63: ='PART A'!I81 -> 0 | K63: ='PART A'!K81 -> 0 | M63: =SUM(G63:K63) -> 0
C65: Occupational therapists | E65: ='PART A'!O46 -> 0 | G65: ='PART A'!G83 -> 0 | I65: ='PART A'!I83 -> 0 | K65: ='PART A'!K83 -> 0 | M65: =SUM(E65:K65) -> 0
C67: Dietitians | E67: ='PART A'!O48 -> 0 | G67: ='PART A'!G85 -> 0 | I67: ='PART A'!I85 -> 0 | K67: ='PART A'!K85 -> 0 | M67: =SUM(E67:K67) -> 0
C69: Podiatrists | E69: ='PART A'!O50 -> 0 | G69: ='PART A'!G87 -> 0 | I69: ='PART A'!I87 -> 0 | K69: ='PART A'!K87 -> 0 | M69: =SUM(E69:K69) -> 0
C71: Health and wellbeing coaches | E71: ='PART A'!O52 -> 0 | G71: ='PART A'!G89 -> 0 | I71: ='PART A'!I89 -> 0 | K71: ='PART A'!K89 -> 0 | M71: =SUM(E71:K71) -> 0
C73: Care co-ordinators | E73: ='PART A'!O54 -> 0 | G73: ='PART A'!G91 -> 0 | I73: ='PART A'!I91 -> 0 | K73: ='PART A'!K91 -> 0 | M73: =SUM(E73:K73) -> 0
C75: Mental health practitioners | G75: ='PART A'!G93 -> 0 | I75: ='PART A'!I93 -> 0 | K75: ='PART A'!K93 -> 0 | M75: =SUM(G75:K75) -> 0
C78: PCN Clinical Directors | E78: =O28 -> 0 | M78: =SUM(E78:K78) -> 0
C81: Other direct patient care staff | E81: =O30 -> 0 | M81: =SUM(E81:K81) -> 0
C84: Non-clinical/admin staff | E84: =O32 -> 0 | M84: =SUM(E84:K84) -> 0
C86: Total indicative multi-disciplinary team: | E86: =SUM(E43:E84) -> 0 | G86: =SUM(G43:G84) -> 0 | I86: =SUM(I43:I84) -> 0 | K86: =SUM(K43:K84) -> 0 | M86: =SUM(M42:M84) -> 0
C90: Additional comments (please ensure you do not include any personally identifiable information in this section).
C92: Supporting information and / or requests for support Please provide any supporting information below, or indicate if your PCN requires any further support to help progress recruitment workforce planning activity.
C100: Nursing Please indicate which branch of nursing you are considering (e.g. adults, children's, mental health, learning disability etc):
C108: Other direct patient care staff (i.e. those recruited outside of the ARRS scheme), please give an indication of the roles being considered (e.g. health visitors, nursing associates, health care assistants) to support conversations with your training hub:

Sheet Part B - hidden (hidden)
A1: Name of PCN: | B1: ='PART B'!E7 -> 
A2: Org Code (if known): | B2: ='PART B'!E9 -> 
A3: Last updated: | B3: ='PART B'!E11 -> 00:00:00
A4: PCN Clinical Director: | B4: ='PART B'!M7 -> 0
A5: Training Hub Contact: | B5: ='PART B'!M9 -> 0
B10: Staff numbers as at March 2020 | C10: Quarter 1 April - Jun | D10: Quarter 2 Jul - Sep | E10: Quarter 3 Oct - Dec | F10: Quarter 4 Jan - Mar
A11: GPs (excluding registrars and locums) | B11: ='PART B'!E20 -> 0 | C11: ='PART B'!G20 -> 0 | D11: ='PART B'!I20 -> 0 | E11: ='PART B'!K20 -> 0 | F11: ='PART B'!M20 -> 0
A12: Nurses | B12: ='PART B'!E22 -> 0 | C12: ='PART B'!G22 -> 0 | D12: ='PART B'!I22 -> 0 | E12: ='PART B'!K22 -> 0 | F12: ='PART B'!M22 -> 0
C13: ='PART B'!G24 -> 0 | D13: ='PART B'!I24 -> 0 | E13: ='PART B'!K24 -> 0 | F13: ='PART B'!M24 -> 0
C14: ='PART B'!G26 -> 0 | D14: ='PART B'!I26 -> 0 | E14: ='PART B'!K26 -> 0 | F14: ='PART B'!M26 -> 0
A15: PCN Clinical Directors | B15: ='PART B'!E28 -> 0 | C15: ='PART B'!G28 -> 0 | D15: ='PART B'!I28 -> 0 | E15: ='PART B'!K28 -> 0 | F15: ='PART B'!M28 -> 0
A16: Other direct patient care staff (outside of ARRS) | B16: ='PART B'!E30 -> 0 | C16: ='PART B'!G30 -> 0 | D16: ='PART B'!I30 -> 0 | E16: ='PART B'!K30 -> 0 | F16: ='PART B'!M30 -> 0
A17: Non-clinical / admin roles | B17: ='PART B'!E32 -> 0 | C17: ='PART B'!G32 -> 0 | D17: ='PART B'!I32 -> 0 | E17: ='PART B'!K32 -> 0 | F17: ='PART B'!M32 -> 0
B23: 2021/22 | C23: 2022/23 | D23: 2023/24
A25: GPs (excluding registrars and locums) | B25: ='PART B'!G43 -> 0 | C25: ='PART B'!I43 -> 0 | D25: ='PART B'!K43 -> 0
A26: Nurses | B26: ='PART B'!G46 -> 0 | C26: ='PART B'!I46 -> 0 | D26: ='PART B'!K46 -> 0
A27: PCN Clinical Directors | B27: ='PART B'!G78 -> 0 | C27: ='PART B'!I78 -> 0 | D27: ='PART B'!K78 -> 0
A28: Other direct patient care staff | B28: ='PART B'!G81 -> 0 | C28: ='PART B'!I81 -> 0 | D28: ='PART B'!K81 -> 0
A29: Non-clinical/admin staff | B29: ='PART B'!G84 -> 0 | C29: ='PART B'!I84 -> 0 | D29: ='PART B'!K84 -> 0
A39: Supporting information and / or requests for support Please provide any supporting information below, or indicate if your PCN requires any further support to help progress recruitment workforce planning activity. | B39: ='PART B'!C93 -> 0
A40: Nursing Please indicate which branch of nursing you are considering (e.g. adults, children's, mental health, learning disability etc): | B40: ='PART B'!C101 -> 0
A41: Other direct patient care staff (i.e. those recruited outside of the ARRS scheme), please give an indication of the roles being considered (e.g. health visitors, nursing associates, health care assistants) to support conversations with your training hub: | B41: ='PART B'!C109 -> 0

Sheet Supporting Information
B2: PCN Workforce Planning Template: Supporting Information
B4: Additional Roles Reimbursement Scheme The information set out in this template aligns to requirements set out in Updates to the GP Contract - 20/21 - 23/24 (published 6 February 2020). The roles identified align to those available for reimbursement under the Additional Roles Reimbursement Scheme (including on costs). This scheme has expanded from April 2020 to include pharmacy technicians, care co-ordinators, health & wellbeing coaches, dietitians, podiatrists and occupational therapists in addition to the five roles already included (clinical pharmacists, social prescribing link workers, physician associates, paramedics and first contact physiotherapists). Nursing Associates and Trainee Nursing Associates were added from October 2020.
B7: Roles covered by the Additional Roles Reimbursement Scheme | C7: 2020/21 Maximum Reimbursement Rates | Q7: AfC band
E8: Indicative reimbursement amounts based on month of recruitment
E10: Apr | F10: May | G10: Jun | H10: Jul | I10: Aug | J10: Sep | K10: Oct | L10: Nov | M10: Dec | N10: Jan | O10: Feb | P10: Mar
B11: Clinical pharmacists | C11: 55670 | E11: =C11/12*12 -> 55670 | F11: =C11/12*11 -> 51030.83333 | G11: =C11/12*10 -> 46391.66667 | H11: =C11/12*9 -> 41752.5 | I11: =C11/12*8 -> 37113.33333 | J11: =C11/12*7 -> 32474.16667 | K11: =C11/12*6 -> 27835 | L11: =C11/12*5 -> 23195.83333 | M11: =C11/12*4 -> 18556.66667 | N11: =C11/12*3 -> 13917.5 | O11: =C11/12*2 -> 9278.333333 | P11: =C11/12*1 -> 4639.166667 | Q11: 7-8A | S11: Introduced from July 2019. To include staff transferred from the Clinical Pharmacist in General Practice / Medicines Optimisation in Care Homes Schemes.
B13: Nursing Associates | C13: 29135 | E13: =C13/12*12 -> 29135 | F13: =C13/12*11 -> 26707.08333 | G13: =C13/12*10 -> 24279.16667 | H13: =C13/12*9 -> 21851.25 | I13: =C13/12*8 -> 19423.33333 | J13: =C13/12*7 -> 16995.41667 | K13: =C13/12*6 -> 14567.5 | L13: =C13/12*5 -> 12139.58333 | M13: =C13/12*4 -> 9711.666667 | N13: =C13/12*3 -> 7283.75 | O13: =C13/12*2 -> 4855.833333 | P13: =C13/12*1 -> 2427.916667 | Q13: 4 | S13: Available from 1 October 2020.
B15: Trainee Nursing Associates | C15: 25370 | E15: =C15/12*12 -> 25370 | F15: =C15/12*11 -> 23255.83333 | G15: =C15/12*10 -> 21141.66667 | H15: =C15/12*9 -> 19027.5 | I15: =C15/12*8 -> 16913.33333 | J15: =C15/12*7 -> 14799.16667 | K15: =C15/12*6 -> 12685 | L15: =C15/12*5 -> 10570.83333 | M15: =C15/12*4 -> 8456.666667 | N15: =C15/12*3 -> 6342.5 | O15: =C15/12*2 -> 4228.333333 | P15: =C15/12*1 -> 2114.166667 | Q15: 3 | S15: Available from 1 October 2020.
B17: Social prescribing link workers | C17: 35389 | E17: =C17/12*12 -> 35389 | F17: =C17/12*11 -> 32439.91667 | G17: =C17/12*10 -> 29490.83333 | H17: =C17/12*9 -> 26541.75 | I17: =C17/12*8 -> 23592.66667 | J17: =C17/12*7 -> 20643.58333 | K17: =C17/12*6 -> 17694.5 | L17: =C17/12*5 -> 14745.41667 | M17: =C17/12*4 -> 11796.33333 | N17: =C17/12*3 -> 8847.25 | O17: =C17/12*2 -> 5898.166667 | P17: =C17/12*1 -> 2949.083333 | Q17: Up to 5 | S17: Introduced from July 2019.
B19: First contact physiotherapists | C19: 55670 | E19: =C19/12*12 -> 55670 | F19: =C19/12*11 -> 51030.83333 | G19: =C19/12*10 -> 46391.66667 | H19: =C19/12*9 -> 41752.5 | I19: =C19/12*8 -> 37113.33333 | J19: =C19/12*7 -> 32474.16667 | K19: =C19/12*6 -> 27835 | L19: =C19/12*5 -> 23195.83333 | M19: =C19/12*4 -> 18556.66667 | N19: =C19/12*3 -> 13917.5 | O19: =C19/12*2 -> 9278.333333 | P19: =C19/12*1 -> 4639.166667 | Q19: 7-8A | S19: Available from 1 April 2020.
B21: Physician associates | C21: 53724 | E21: =C21/12*12 -> 53724 | F21: =C21/12*11 -> 49247 | G21: =C21/12*10 -> 44770 | H21: =C21/12*9 -> 40293 | I21: =C21/12*8 -> 35816 | J21: =C21/12*7 -> 31339 | K21: =C21/12*6 -> 26862 | L21: =C21/12*5 -> 22385 | M21: =C21/12*4 -> 17908 | N21: =C21/12*3 -> 13431 | O21: =C21/12*2 -> 8954 | P21: =C21/12*1 -> 4477 | Q21: 7 | S21: Available from 1 April 2020.
B23: Pharmacy technicians | C23: 35389 | E23: =C23/12*12 -> 35389 | F23: =C23/12*11 -> 32439.91667 | G23: =C23/12*10 -> 29490.83333 | H23: =C23/12*9 -> 26541.75 | I23: =C23/12*8 -> 23592.66667 | J23: =C23/12*7 -> 20643.58333 | K23: =C23/12*6 -> 17694.5 | L23: =C23/12*5 -> 14745.41667 | M23: =C23/12*4 -> 11796.33333 | N23: =C23/12*3 -> 8847.25 | O23: =C23/12*2 -> 5898.166667 | P23: =C23/12*1 -> 2949.083333 | Q23: 5 | S23: Available from 1 April 2020.
B25: Paramedics | C25: TBC | Q25: 7 | S25: Community paramedics are due to be introduced to the Scheme from 2021/22.
B27: Occupational therapists | C27: 53724 | E27: =C27/12*12 -> 53724 | F27: =C27/12*11 -> 49247 | G27: =C27/12*10 -> 44770 | H27: =C27/12*9 -> 40293 | I27: =C27/12*8 -> 35816 | J27: =C27/12*7 -> 31339 | K27: =C27/12*6 -> 26862 | L27: =C27/12*5 -> 22385 | M27: =C27/12*4 -> 17908 | N27: =C27/12*3 -> 13431 | O27: =C27/12*2 -> 8954 | P27: =C27/12*1 -> 4477 | Q27: 7 | S27: Available from 1 April 2020.
B29: Dietitians | C29: 53724 | E29: =C29/12*12 -> 53724 | F29: =C29/12*11 -> 49247 | G29: =C29/12*10 -> 44770 | H29: =C29/12*9 -> 40293 | I29: =C29/12*8 -> 35816 | J29: =C29/12*7 -> 31339 | K29: =C29/12*6 -> 26862 | L29: =C29/12*5 -> 22385 | M29: =C29/12*4 -> 17908 | N29: =C29/12*3 -> 13431 | O29: =C29/12*2 -> 8954 | P29: =C29/12*1 -> 4477 | Q29: 7 | S29: Available from 1 April 2020.
B31: Chiropodists / podiatrists | C31: 53724 | E31: =C31/12*12 -> 53724 | F31: =C31/12*11 -> 49247 | G31: =C31/12*10 -> 44770 | H31: =C31/12*9 -> 40293 | I31: =C31/12*8 -> 35816 | J31: =C31/12*7 -> 31339 | K31: =C31/12*6 -> 26862 | L31: =C31/12*5 -> 22385 | M31: =C31/12*4 -> 17908 | N31: =C31/12*3 -> 13431 | O31: =C31/12*2 -> 8954 | P31: =C31/12*1 -> 4477 | Q31: 7 | S31: Available from 1 April 2020.
B33: Health and wellbeing coaches | C33: 35389 | E33: =C33/12*12 -> 35389 | F33: =C33/12*11 -> 32439.91667 | G33: =C33/12*10 -> 29490.83333 | H33: =C33/12*9 -> 26541.75 | I33: =C33/12*8 -> 23592.66667 | J33: =C33/12*7 -> 20643.58333 | K33: =C33/12*6 -> 17694.5 | L33: =C33/12*5 -> 14745.41667 | M33: =C33/12*4 -> 11796.33333 | N33: =C33/12*3 -> 8847.25 | O33: =C33/12*2 -> 5898.166667 | P33: =C33/12*1 -> 2949.083333 | Q33: Up to 5 | S33: Available from 1 April 2020.
B35: Care co-ordinators | C35: 29135 | E35: =C35/12*12 -> 29135 | F35: =C35/12*11 -> 26707.08333 | G35: =C35/12*10 -> 24279.16667 | H35: =C35/12*9 -> 21851.25 | I35: =C35/12*8 -> 19423.33333 | J35: =C35/12*7 -> 16995.41667 | K35: =C35/12*6 -> 14567.5 | L35: =C35/12*5 -> 12139.58333 | M35: =C35/12*4 -> 9711.666667 | N35: =C35/12*3 -> 7283.75 | O35: =C35/12*2 -> 4855.833333 | P35: =C35/12*1 -> 2427.916667 | Q35: 4 | S35: Available from 1 April 2020.
B37: Mental health practitioners | C37: TBC | Q37: TBC | S37: It is intended that mental health practitioners will be added to the ARRS from April 2021 following current pilots.
B40: National Workforce Reporting System Workforce data reported by practices via the National Workforce Reporting System (NWRS) is vital to understanding workforce pressures in primary care, and supporting effective workforce planning. The Network Contract DES introduces a new contractual requirement for practice updates to the NWRS to be made on a monthly basis as a minimum (currently quarterly). We will also continue to work with NHS Digital and wider stakeholders to strengthen the reporting and tools made available to practices and PCNs from this data to support their workforce planning activity. NWRS can be accessed here: https://www.nwrs.nhs.uk/

Sheet Data Sheet (hidden)
A1: PART A | H1: Recruitment intentions for 2020/21 | BP1: Indicative intentions for 2021/22 (due by 31st October 2020) | DH1: PART B | ER1: Indicative intentions for the remainder of the five year GP contract deal
H2: Recruited during 2019/20 | T2: Quarter 1 April - Jun | AF2: Quarter 2 Jul - Sep | AR2: Quarter 3 Oct - Dec | BD2: Quarter 4 Jan - Mar | BP2: 2021/22 | CD2: 2022/23 | CR2: 2023/24 | DI2: Staff numbers as at March 2020 | DP2: Quarter 1 April - Jun | DW2: Quarter 2 Jul - Sep | ED2: Quarter 3 Oct - Dec | EK2: Quarter 4 Jan - Mar | ER2: 2021/22 | EW2: 2022/23 | FB2: 2023/24 | FG2: Additional comments
A3: Name of PCN: | B3: Org Code (if known): | C3: Last updated: | D3: PCN Clinical Director: | E3: Training Hub Contact: | F3: Enter the PCN weighted population as at January 2020: | G3: PCN-level ARRS Allocation 2020/21: | H3: Clinical pharmacists | I3: Nurse Associates | J3: Nurse Training Associates | K3: Social prescribing link workers | L3: First contact physiotherapists | M3: Physician associates | N3: Pharmacy technicians | O3: Occupational therapists | P3: Dietitians | Q3: Podiatrists | R3: Health and wellbeing coaches | S3: Care co-ordinators | T3: Clinical pharmacists | U3: Nurse Associates | V3: Nurse Training Associates | W3: Social prescribing link workers | X3: First contact physiotherapists | Y3: Physician associates | Z3: Pharmacy technicians | AA3: Occupational therapists | AB3: Dietitians | AC3: Podiatrists | AD3: Health and wellbeing coaches | AE3: Care co-ordinators | AF3: Clinical pharmacists | AG3: Nurse Associates | AH3: Nurse Training Associates | AI3: Social prescribing link workers | AJ3: First contact physiotherapists | AK3: Physician associates | AL3: Pharmacy technicians | AM3: Occupational therapists | AN3: Dietitians | AO3: Podiatrists | AP3: Health and wellbeing coaches | AQ3: Care co-ordinators | AR3: Clinical pharmacists | AS3: Nurse Associates | AT3: Nurse Training Associates | AU3: Social prescribing link workers | AV3: First contact physiotherapists | AW3: Physician associates | AX3: Pharmacy technicians | AY3: Occupational therapists | AZ3: Dietitians | BA3: Podiatrists | BB3: Health and wellbeing coaches | BC3: Care co-ordinators | BD3: Clinical pharmacists | BE3: Nurse Associates | BF3: Nurse Training Associates | BG3: Social prescribing link workers | BH3: First contact physiotherapists | BI3: Physician associates | BJ3: Pharmacy technicians | BK3: Occupational therapists | BL3: Dietitians | BM3: Podiatrists | BN3: Health and wellbeing coaches | BO3: Care co-ordinators | BP3: Clinical pharmacists | BQ3: Nurse Associates | BR3: Nurse Training Associates | BS3: Social prescribing link workers | BT3: First contact physiotherapists | BU3: Physician associates | BV3: Pharmacy technicians | BW3: Community paramedics | BX3: Occupational therapists | BY3: Dietitians | BZ3: Podiatrists | CA3: Health and wellbeing coaches | CB3: Care co-ordinators | CC3: Mental health practitioners | CD3: Clinical pharmacists | CE3: Nurse Associates | CF3: Nurse Training Associates | CG3: Social prescribing link workers | CH3: First contact physiotherapists | CI3: Physician associates | CJ3: Pharmacy technicians | CK3: Community paramedics | CL3: Occupational therapists | CM3: Dietitians | CN3: Podiatrists | CO3: Health and wellbeing coaches | CP3: Care co-ordinators | CQ3: Mental health practitioners | CR3: Clinical pharmacists | CS3: Nurse Associates | CT3: Nurse Training Associates | CU3: Social prescribing link workers | CV3: First contact physiotherapists | CW3: Physician associates | CX3: Pharmacy technicians | CY3: Community paramedics | CZ3: Occupational therapists | DA3: Dietitians | DB3: Podiatrists | DC3: Health and wellbeing coaches | DD3: Care co-ordinators | DE3: Mental health practitioners | DF3: Requests for support to progress recruitment activity (e.g. advertising posts, supporting recruitment activity, brokering recruitment opportunities with neighbouring PCNs): | DG3: Any other comments: | DH3: Last updated: | DI3: GPs (excluding registrars and locums) | DJ3: Nurses | DK3: Of these, how many do you anticipate will be: | DL3: …advanced nurse practitioners | DM3: PCN Clinical Directors | DN3: Other direct patient care staff (outside of ARRS) | DO3: Non-clinical / admin roles | DP3: GPs (excluding registrars and locums) | DQ3: Nurses | DR3: Of these, how many do you anticipate will be: | DS3: …advanced nurse practitioners | DT3: PCN Clinical Directors | DU3: Other direct patient care staff (outside of ARRS) | DV3: Non-clinical / admin roles | DW3: GPs (excluding registrars and locums) | DX3: Nurses | DY3: Of these, how many do you anticipate will be: | DZ3: …advanced nurse practitioners | EA3: PCN Clinical Directors | EB3: Other direct patient care staff (outside of ARRS) | EC3: Non-clinical / admin roles | ED3: GPs (excluding registrars and locums) | EE3: Nurses | EF3: Of these, how many do you anticipate will be: | EG3: …advanced nurse practitioners | EH3: PCN Clinical Directors | EI3: Other direct patient care staff (outside of ARRS) | EJ3: Non-clinical / admin roles | EK3: GPs (excluding registrars and locums) | EL3: Nurses | EM3: Of these, how many do you anticipate will be: | EN3: …advanced nurse practitioners | EO3: PCN Clinical Directors | EP3: Other direct patient care staff (outside of ARRS) | EQ3: Non-clinical / admin roles | ER3: GPs (excluding registrars and locums) | ES3: Nurses | ET3: PCN Clinical Directors | EU3: Other direct patient care staff | EV3: Non-clinical/admin staff | EW3: GPs (excluding registrars and locums) | EX3: Nurses | EY3: PCN Clinical Directors | EZ3: Other direct patient care staff | FA3: Non-clinical/admin staff | FB3: GPs (excluding registrars and locums) | FC3: Nurses | FD3: PCN Clinical Directors | FE3: Other direct patient care staff | FF3: Non-clinical/admin staff | FG3: Supporting information and / or requests for support | FH3: Nursing | FI3: Other direct patient care staff
A4: =IF('PART A'!$E12="","",'PART A'!$E12) ->  | B4: =IF('PART A'!$E14="","",'PART A'!$E14) ->  | C4: =IF('PART A'!$M16="","",'PART A'!$M16) ->  | D4: =IF('PART A'!$M12="","",'PART A'!$M12) ->  | E4: =IF('PART A'!$M14="","",'PART A'!$M14) ->  | F4: =IF('PART A'!$K21="","",'PART A'!$K21) -> 0 | G4: =IF('PART A'!$K23="","",'PART A'!$K23) ->  | H4: =IF('PART A'!$E32="","",'PART A'!$E32) ->  | I4: =IF('PART A'!$E34="","",'PART A'!$E34) ->  | J4: =IF('PART A'!$E36="","",'PART A'!$E36) ->  | K4: =IF('PART A'!$E38="","",'PART A'!$E38) ->  | T4: =IF('PART A'!$G32="","",'PART A'!$G32) ->  | U4: =IF('PART A'!$G34="","",'PART A'!$G34) ->  | V4: =IF('PART A'!$G36="","",'PART A'!$G36) ->  | W4: =IF('PART A'!$G38="","",'PART A'!$G38) ->  | X4: =IF('PART A'!$G40="","",'PART A'!$G40) ->  | Y4: =IF('PART A'!$G42="","",'PART A'!$G42) ->  | Z4: =IF('PART A'!$G44="","",'PART A'!$G44) ->  | AA4: =IF('PART A'!$G46="","",'PART A'!$G46) ->  | AB4: =IF('PART A'!$G48="","",'PART A'!$G48) ->  | AC4: =IF('PART A'!$G50="","",'PART A'!$G50) ->  | AD4: =IF('PART A'!$G52="","",'PART A'!$G52) ->  | AE4: =IF('PART A'!$G54="","",'PART A'!$G54) ->  | AF4: =IF('PART A'!$I32="","",'PART A'!$I32) ->  | AG4: =IF('PART A'!$I34="","",'PART A'!$I34) ->  | AH4: =IF('PART A'!$I36="","",'PART A'!$I36) ->  | AI4: =IF('PART A'!$I38="","",'PART A'!$I38) ->  | AJ4: =IF('PART A'!$I40="","",'PART A'!$I40) ->  | AK4: =IF('PART A'!$I42="","",'PART A'!$I42) ->  | AL4: =IF('PART A'!$I44="","",'PART A'!$I44) ->  | AM4: =IF('PART A'!$I46="","",'PART A'!$I46) ->  | AN4: =IF('PART A'!$I48="","",'PART A'!$I48) ->  | AO4: =IF('PART A'!$I50="","",'PART A'!$I50) ->  | AP4: =IF('PART A'!$I52="","",'PART A'!$I52) ->  | AQ4: =IF('PART A'!$I54="","",'PART A'!$I54) ->  | AR4: =IF('PART A'!$K32="","",'PART A'!$K32) ->  | AS4: =IF('PART A'!$K34="","",'PART A'!$K34) ->  | AT4: =IF('PART A'!$K36="","",'PART A'!$K36) ->  | AU4: =IF('PART A'!$K38="","",'PART A'!$K38) ->  | AV4: =IF('PART A'!$K40="","",'PART A'!$K40) ->  | AW4: =IF('PART A'!$K42="","",'PART A'!$K42) ->  | AX4: =IF('PART A'!$K44="","",'PART A'!$K44) ->  | AY4: =IF('PART A'!$K46="","",'PART A'!$K46) ->  | AZ4: =IF('PART A'!$K48="","",'PART A'!$K48) ->  | BA4: =IF('PART A'!$K50="","",'PART A'!$K50) ->  | BB4: =IF('PART A'!$K52="","",'PART A'!$K52) ->  | BC4: =IF('PART A'!$K54="","",'PART A'!$K54) ->  | BD4: =IF('PART A'!$M32="","",'PART A'!$M32) ->  | BE4: =IF('PART A'!$M34="","",'PART A'!$M34) ->  | BF4: =IF('PART A'!$M36="","",'PART A'!$M36) ->  | BG4: =IF('PART A'!$M38="","",'PART A'!$M38) ->  | BH4: =IF('PART A'!$M40="","",'PART A'!$M40) ->  | BI4: =IF('PART A'!$M42="","",'PART A'!$M42) ->  | BJ4: =IF('PART A'!$M44="","",'PART A'!$M44) ->  | BK4: =IF('PART A'!$M46="","",'PART A'!$M46) ->  | BL4: =IF('PART A'!$M48="","",'PART A'!$M48) ->  | BM4: =IF('PART A'!$M50="","",'PART A'!$M50) ->  | BN4: =IF('PART A'!$M52="","",'PART A'!$M52) ->  | BO4: =IF('PART A'!$M54="","",'PART A'!$M54) ->  | BP4: =IF('PART A'!$G67="","",'PART A'!$G67) ->  | BQ4: =IF('PART A'!$G69="","",'PART A'!$G69) ->  | BR4: =IF('PART A'!$G71="","",'PART A'!$G71) ->  | BS4: =IF('PART A'!$G73="","",'PART A'!$G73) ->  | BT4: =IF('PART A'!$G75="","",'PART A'!$G75) ->  | BU4: =IF('PART A'!$G77="","",'PART A'!$G77) ->  | BV4: =IF('PART A'!$G79="","",'PART A'!$G79) ->  | BW4: =IF('PART A'!$G81="","",'PART A'!$G81) ->  | BX4: =IF('PART A'!$G83="","",'PART A'!$G83) ->  | BY4: =IF('PART A'!$G85="","",'PART A'!$G85) ->  | BZ4: =IF('PART A'!$G87="","",'PART A'!$G87) ->  | CA4: =IF('PART A'!$G89="","",'PART A'!$G89) ->  | CB4: =IF('PART A'!$G91="","",'PART A'!$G91) ->  | CC4: =IF('PART A'!$G93="","",'PART A'!$G93) ->  | CD4: =IF('PART A'!$I67="","",'PART A'!$I67) ->  | CE4: =IF('PART A'!$I69="","",'PART A'!$I69) ->  | CF4: =IF('PART A'!$I71="","",'PART A'!$I71) ->  | CG4: =IF('PART A'!$I73="","",'PART A'!$I73) ->  | CH4: =IF('PART A'!$I75="","",'PART A'!$I75) ->  | CI4: =IF('PART A'!$I77="","",'PART A'!$I77) ->  | CJ4: =IF('PART A'!$I79="","",'PART A'!$I79) ->  | CK4: =IF('PART A'!$I81="","",'PART A'!$I81) ->  | CL4: =IF('PART A'!$I83="","",'PART A'!$I83) ->  | CM4: =IF('PART A'!$I85="","",'PART A'!$I85) ->  | CN4: =IF('PART A'!$I87="","",'PART A'!$I87) ->  | CO4: =IF('PART A'!$I89="","",'PART A'!$I89) ->  | CP4: =IF('PART A'!$I91="","",'PART A'!$I91) ->  | CQ4: =IF('PART A'!$I93="","",'PART A'!$I93) ->  | CR4: =IF('PART A'!$K67="","",'PART A'!$K67) ->  | CS4: =IF('PART A'!$K69="","",'PART A'!$K69) ->  | CT4: =IF('PART A'!$K71="","",'PART A'!$K71) ->  | CU4: =IF('PART A'!$K73="","",'PART A'!$K73) ->  | CV4: =IF('PART A'!$K75="","",'PART A'!$K75) ->  | CW4: =IF('PART A'!$K77="","",'PART A'!$K77) ->  | CX4: =IF('PART A'!$K79="","",'PART A'!$K79) ->  | CY4: =IF('PART A'!$K81="","",'PART A'!$K81) ->  | CZ4: =IF('PART A'!$K83="","",'PART A'!$K83) ->  | DA4: =IF('PART A'!$K85="","",'PART A'!$K85) ->  | DB4: =IF('PART A'!$K87="","",'PART A'!$K87) ->  | DC4: =IF('PART A'!$K89="","",'PART A'!$K89) ->  | DD4: =IF('PART A'!$K91="","",'PART A'!$K91) ->  | DE4: =IF('PART A'!$K93="","",'PART A'!$K93) ->  | DF4: =IF('PART A'!$C101="","",'PART A'!$C101) ->  | DG4: =IF('PART A'!$C109="","",'PART A'!$C109) ->  | DH4: =IF('PART B'!$E11="","",'PART B'!$E11) ->  | DI4: =IF('PART B'!$E20="","",'PART B'!$E20) ->  | DJ4: =IF('PART B'!$E22="","",'PART B'!$E22) ->  | DM4: =IF('PART B'!$E28="","",'PART B'!$E28) ->  | DN4: =IF('PART B'!$E30="","",'PART B'!$E30) ->  | DO4: =IF('PART B'!$E32="","",'PART B'!$E32) ->  | DP4: =IF('PART B'!$G20="","",'PART B'!$G20) ->  | DQ4: =IF('PART B'!$G22="","",'PART B'!$G22) ->  | DR4: =IF('PART B'!$G24="","",'PART B'!$G24) ->  | DS4: =IF('PART B'!$G26="","",'PART B'!$G26) ->  | DT4: =IF('PART B'!$G28="","",'PART B'!$G28) ->  | DU4: =IF('PART B'!$G30="","",'PART B'!$G30) ->  | DV4: =IF('PART B'!$G32="","",'PART B'!$G32) ->  | DW4: =IF('PART B'!$I20="","",'PART B'!$I20) ->  | DX4: =IF('PART B'!$I22="","",'PART B'!$I22) ->  | DY4: =IF('PART B'!$I24="","",'PART B'!$I24) ->  | DZ4: =IF('PART B'!$I26="","",'PART B'!$I26) ->  | EA4: =IF('PART B'!$I28="","",'PART B'!$I28) ->  | EB4: =IF('PART B'!$I30="","",'PART B'!$I30) ->  | EC4: =IF('PART B'!$I32="","",'PART B'!$I32) ->  | ED4: =IF('PART B'!$K20="","",'PART B'!$K20) ->  | EE4: =IF('PART B'!$K22="","",'PART B'!$K22) ->  | EF4: =IF('PART B'!$K24="","",'PART B'!$K24) ->  | EG4: =IF('PART B'!$K26="","",'PART B'!$K26) ->  | EH4: =IF('PART B'!$K28="","",'PART B'!$K28) ->  | EI4: =IF('PART B'!$K30="","",'PART B'!$K30) ->  | EJ4: =IF('PART B'!$K32="","",'PART B'!$K32) ->  | EK4: =IF('PART B'!$M20="","",'PART B'!$M20) ->  | EL4: =IF('PART B'!$M22="","",'PART B'!$M22) ->  | EM4: =IF('PART B'!$M24="","",'PART B'!$M24) ->  | EN4: =IF('PART B'!$M26="","",'PART B'!$M26) ->  | EO4: =IF('PART B'!$M28="","",'PART B'!$M28) ->  | EP4: =IF('PART B'!$M30="","",'PART B'!$M30) ->  | EQ4: =IF('PART B'!$M32="","",'PART B'!$M32) ->  | ER4: =IF('PART B'!$G43="","",'PART B'!$G43) ->  | ES4: =IF('PART B'!$G46="","",'PART B'!$G46) ->  | ET4: =IF('PART B'!$G78="","",'PART B'!$G78) ->  | EU4: =IF('PART B'!$G81="","",'PART B'!$G81) ->  | EV4: =IF('PART B'!$G84="","",'PART B'!$G84) ->  | EW4: =IF('PART B'!$I43="","",'PART B'!$I43) ->  | EX4: =IF('PART B'!$I46="","",'PART B'!$I46) ->  | EY4: =IF('PART B'!$I78="","",'PART B'!$I78) ->  | EZ4: =IF('PART B'!$I81="","",'PART B'!$I81) ->  | FA4: =IF('PART B'!$I84="","",'PART B'!$I84) ->  | FB4: =IF('PART B'!$K43="","",'PART B'!$K43) ->  | FC4: =IF('PART B'!$K46="","",'PART B'!$K46) ->  | FD4: =IF('PART B'!$K78="","",'PART B'!$K78) ->  | FE4: =IF('PART B'!$K81="","",'PART B'!$K81) ->  | FF4: =IF('PART B'!$K84="","",'PART B'!$K84) ->  | FG4: =IF('PART B'!C93="","",'PART B'!C93) ->  | FH4: =IF('PART B'!C101="","",'PART B'!C101) ->  | FI4: =IF('PART B'!C109="","",'PART B'!C109) -> 

Sheet Weighted Populations (hidden)
A1: PCN Code | B1: PCN Name | C1: Normalised Weighted List Size | D1: PCN Code | E1: PCN Parent CCG Code | F1: PCN Parent CCG Name | K1: PCN Code | L1: PCN Name | M1: PCN Parent CCG Code | N1: PCN Parent CCG Name | P1: PCN Code | Q1: PCN Name
A2: U00070 | B2: WEST MERTON PCN | C2: 25756.44328 | D2: =A2 -> U00070 | E2: =VLOOKUP($A2,$K$2:$N$1255,3,FALSE) -> 36L | F2: =VLOOKUP($A2,$K$2:$N$1255,4,FALSE) -> NHS SOUTH WEST LONDON CCG | K2: U00070 | L2: WEST MERTON PCN | M2: 36L | N2: NHS SOUTH WEST LONDON CCG | P2: U60176 | Q2: 3 CENTRES PCN
A3: U00147 | B3: AEGIS HEALTHCARE PCN | C3: 44081.87515 | D3: =A3 -> U00147 | E3: =VLOOKUP($A3,$K$2:$N$1255,3,FALSE) -> 04C | F3: =VLOOKUP($A3,$K$2:$N$1255,4,FALSE) -> NHS LEICESTER CITY CCG | K3: U00147 | L3: AEGIS HEALTHCARE PCN | M3: 04C | N3: NHS LEICESTER CITY CCG | P3: U72999 | Q3: 4 DONCASTER PCN
A4: U00203 | B4: ECCLES & IRLAM PCN | C4: 61820.01299 | D4: U00203 | E4: 01G | F4: NHS SALFORD CCG | K4: U00203 | L4: ECCLES & IRLAM PCN | M4: 01G | N4: NHS SALFORD CCG | P4: U16600 | Q4: 4PCC (BNSSG) PCN
A5: U00254 | B5: BLACKHEATH AND CHARLTON PCN | C5: 45653.48073 | D5: U00254 | E5: 72Q | F5: NHS SOUTH EAST LONDON CCG | K5: U00254 | L5: BLACKHEATH AND CHARLTON PCN | M5: 72Q | N5: NHS SOUTH EAST LONDON CCG | P5: U89554 | Q5: A1 NETWORK PCN
A6: U00351 | B6: SOLIHULL SOUTH CENTRAL PCN | C6: 26992.1536 | D6: U00351 | E6: 15E | F6: NHS BIRMINGHAM AND SOLIHULL CCG | K6: U00351 | L6: SOLIHULL SOUTH CENTRAL PCN | M6: 15E | N6: NHS BIRMINGHAM AND SOLIHULL CCG | P6: U72748 | Q6: A31 GROUP PCN
A7: U00367 | B7: HAVERING SOUTH PCN | C7: 103450.555 | D7: U00367 | E7: 08F | F7: NHS HAVERING CCG | K7: U00367 | L7: HAVERING SOUTH PCN | M7: 08F | N7: NHS HAVERING CCG | P7: U16983 | Q7: A34 WEST BERKSHIRE PCN
A8: U00402 | B8: CONNEXUS PCN | C8: 50443.31262 | D8: U00402 | E8: 15C | F8: NHS BRISTOL, NORTH SOMERSET AND SOUTH GLOUCESTERSHIRE CCG | K8: U00402 | L8: CONNEXUS PCN | M8: 15C | N8: NHS BRISTOL, NORTH SOMERSET AND SOUTH GLOUCESTERSHIRE CCG | P8: U06079 | Q8: ABBEY HEALTH PCN
A9: U00639 | B9: CARLISLE RURAL PCN | C9: 22919.8512 | D9: U00639 | E9: 01H | F9: NHS NORTH CUMBRIA CCG | K9: U00639 | L9: CARLISLE RURAL PCN | M9: 01H | N9: NHS NORTH CUMBRIA CCG | P9: U47228 | Q9: ABC PCN
A10: U00760 | B10: NORTH SEDGEMOOR PCN | C10: 40696.20922 | D10: U00760 | E10: 11X | F10: NHS SOMERSET CCG | K10: U00760 | L10: NORTH SEDGEMOOR PCN | M10: 11X | N10: NHS SOMERSET CCG | P10: U57321 | Q10: ABINGDON AND DISTRICT PCN
A11: U01092 | B11: CISSBURY INTEGRATED CARE PCN | C11: 49480.6644 | D11: U01092 | E11: 70F | F11: NHS WEST SUSSEX CCG | K11: U01092 | L11: CISSBURY INTEGRATED CARE PCN | M11: 70F | N11: NHS WEST SUSSEX CCG | P11: U15230 | Q11: ABINGDON CENTRAL PCN
A12: U01096 | B12: LOUGHTON BUCKHURST HILL & CHIGWELL PCN | C12: 55132.74692 | D12: U01096 | E12: 07H | F12: NHS WEST ESSEX CCG | K12: U01096 | L12: LOUGHTON BUCKHURST HILL & CHIGWELL PCN | M12: 07H | N12: NHS WEST ESSEX CCG | P12: U93998 | Q12: ABOUT BETTER CARE (ABC) PCN
A13: U01150 | B13: WELWYN GARDEN CITY AND VILLAGES PCN | C13: 19690.16368 | D13: U01150 | E13: 06K | F13: NHS EAST AND NORTH HERTFORDSHIRE CCG | K13: U01150 | L13: WELWYN GARDEN CITY AND VILLAGES PCN | M13: 06K | N13: NHS EAST AND NORTH HERTFORDSHIRE CCG | P13: U81324 | Q13: ACTON PCN
A14: U01198 | B14: SOUTH (IW) PCN | C14: 28122.01807 | D14: U01198 | E14: 10L | F14: NHS ISLE OF WIGHT CCG | K14: U01198 | L14: SOUTH (IW) PCN | M14: 10L | N14: NHS ISLE OF WIGHT CCG | P14: U00147 | Q14: AEGIS HEALTHCARE PCN
A15: U01315 | B15: FAVERSHAM PCN | C15: 30656.22177 | D15: U01315 | E15: 91Q | F15: NHS KENT AND MEDWAY CCG | K15: U01315 | L15: FAVERSHAM PCN | M15: 91Q | N15: NHS KENT AND MEDWAY CCG | P15: U12553 | Q15: AEGROS HEALTH PCN
A16: U01367 | B16: WALLINGFORD & SURROUNDS PCN | C16: 34070.18861 | D16: U01367 | E16: 10Q | F16: NHS OXFORDSHIRE CCG | K16: U01367 | L16: WALLINGFORD & SURROUNDS PCN | M16: 10Q | N16: NHS OXFORDSHIRE CCG | P16: U66596 | Q16: AFFINITY (BNSSG) PCN
A17: U01577 | B17: WALSALL WEST 2 PCN | C17: 47555.08943 | D17: U01577 | E17: 05Y | F17: NHS WALSALL CCG | K17: U01577 | L17: WALSALL WEST 2 PCN | M17: 05Y | N17: NHS WALSALL CCG | P17: U87769 | Q17: AFFINITY CARE PCN
A18: U01630 | B18: STALYBRIDGE PCN | C18: 42508.1291 | D18: U01630 | E18: 01Y | F18: NHS TAMESIDE AND GLOSSOP CCG | K18: U01630 | L18: STALYBRIDGE PCN | M18: 01Y | N18: NHS TAMESIDE AND GLOSSOP CCG | P18: U45013 | Q18: AINSDALE & BIRKDALE PCN
A19: U01680 | B19: MALTBY WICKERSLEY PCN | C19: 38870.84063 | D19: U01680 | E19: 03L | F19: NHS ROTHERHAM CCG | K19: U01680 | L19: MALTBY WICKERSLEY PCN | M19: 03L | N19: NHS ROTHERHAM CCG | P19: U80186 | Q19: AINTREE PCN
A20: U01901 | B20: CHORLEY CENTRAL PCN | C20: 57663.16104 | D20: U01901 | E20: 00X | F20: NHS CHORLEY AND SOUTH RIBBLE CCG | K20: U01901 | L20: CHORLEY CENTRAL PCN | M20: 00X | N20: NHS CHORLEY AND SOUTH RIBBLE CCG | P20: U78369 | Q20: ALBAN HEALTHCARE PCN
A21: U01916 | B21: CYGNET PCN | C21: 42930.21834 | D21: U01916 | E21: 14Y | F21: NHS BUCKINGHAMSHIRE CCG | K21: U01916 | L21: CYGNET PCN | M21: 14Y | N21: NHS BUCKINGHAMSHIRE CCG | P21: U03055 | Q21: ALDERSHOT PCN
A22: U01989 | B22: DURHAM WEST PCN | C22: 57546.73334 | D22: U01989 | E22: 84H | F22: NHS COUNTY DURHAM CCG | K22: U01989 | L22: DURHAM WEST PCN | M22: 84H | N22: NHS COUNTY DURHAM CCG | P22: U72812 | Q22: ALFRETON RIPLEY CRICH & HEANOR PCN
A23: U02049 | B23: SOUTH TANDRIDGE PCN | C23: 26833.31701 | D23: U02049 | E23: 92A | F23: NHS SURREY HEARTLANDS CCG | K23: U02049 | L23: SOUTH TANDRIDGE PCN | M23: 92A | N23: NHS SURREY HEARTLANDS CCG | P23: U47609 | Q23: ALLIANCE OF SUTTON PRACTICES PCN
A24: U02275 | B24: HYDE PCN | C24: 75254.76504 | D24: U02275 | E24: 01Y | F24: NHS TAMESIDE AND GLOSSOP CCG | K24: U02275 | L24: HYDE PCN | M24: 01Y | N24: NHS TAMESIDE AND GLOSSOP CCG | P24: U75382 | Q24: ALLIANCE PCN
A25: U02453 | B25: WEST CENTRAL PCN | C25: 34136.30104 | D25: U02453 | E25: 99G | F25: NHS SOUTHEND CCG | K25: U02453 | L25: WEST CENTRAL PCN | M25: 99G | N25: NHS SOUTHEND CCG | P25: U36299 | Q25: ALPHA PCN
A26: U02454 | B26: NIGHTINGALE PCN | C26: 26839.86695 | D26: U02454 | E26: 36L | F26: NHS SOUTH WEST LONDON CCG | K26: U02454 | L26: NIGHTINGALE PCN | M26: 36L | N26: NHS SOUTH WEST LONDON CCG | P26: U52868 | Q26: ALPS GROUP PCN
A27: U02610 | B27: EAST CORNWALL PCN | C27: 115558.068 | D27: U02610 | E27: 11N | F27: NHS KERNOW CCG | K27: U02610 | L27: EAST CORNWALL PCN | M27: 11N | N27: NHS KERNOW CCG | P27: U95344 | Q27: ALTRINCHAM HEALTHCARE ALLIANCE PCN
A28: U02669 | B28: BERKELEY VALE PCN | C28: 35672.82053 | D28: U02669 | E28: 11M | F28: NHS GLOUCESTERSHIRE CCG | K28: U02669 | L28: BERKELEY VALE PCN | M28: 11M | N28: NHS GLOUCESTERSHIRE CCG | P28: U15164 | Q28: ANDOVER PCN
A29: U02671 | B29: GREATER MIDDLESBROUGH PCN | C29: 70153.07719 | D29: U02671 | E29: 16C | F29: NHS TEES VALLEY CCG | K29: U02671 | L29: GREATER MIDDLESBROUGH PCN | M29: 16C | N29: NHS TEES VALLEY CCG | P29: U49727 | Q29: ANFIELD & EVERTON PCN
A30: U02678 | B30: WINSFORD PCN | C30: 38533.6291 | D30: U02678 | E30: 27D | F30: NHS CHESHIRE CCG | K30: U02678 | L30: WINSFORD PCN | M30: 27D | N30: NHS CHESHIRE CCG | P30: U17435 | Q30: APEX PCN
A31: U02731 | B31: IGPC PCN | C31: 48712.76588 | D31: U02731 | E31: 99A | F31: NHS LIVERPOOL CCG | K31: U02731 | L31: IGPC PCN | M31: 99A | N31: NHS LIVERPOOL CCG | P31: U07140 | Q31: APL BEXLEY PCN
A32: U02739 | B32: WHITLEY BAY PCN | C32: 51090.68774 | D32: U02739 | E32: 99C | F32: NHS NORTH TYNESIDE CCG | K32: U02739 | L32: WHITLEY BAY PCN | M32: 99C | N32: NHS NORTH TYNESIDE CCG | P32: U23546 | Q32: APLOS HEALTH PCN
A33: U02749 | B33: CENTRAL BOURNEMOUTH PCN | C33: 43655.67969 | D33: U02749 | E33: 11J | F33: NHS DORSET CCG | K33: U02749 | L33: CENTRAL BOURNEMOUTH PCN | M33: 11J | N33: NHS DORSET CCG | P33: U36721 | Q33: ARBENNEK HEALTH PCN
A34: U02961 | B34: SOUTH WESTMINSTER PCN | C34: 75169.61027 | D34: U02961 | E34: 09A | F34: NHS CENTRAL LONDON (WESTMINSTER) CCG | K34: U02961 | L34: SOUTH WESTMINSTER PCN | M34: 09A | N34: NHS CENTRAL LONDON (WESTMINSTER) CCG | P34: U23821 | Q34: ARC BUCKS PCN
A35: U03055 | B35: ALDERSHOT PCN | C35: 46099.89718 | D35: U03055 | E35: 99M | F35: NHS NORTH EAST HAMPSHIRE AND FARNHAM CCG | K35: U03055 | L35: ALDERSHOT PCN | M35: 99M | N35: NHS NORTH EAST HAMPSHIRE AND FARNHAM CCG | P35: U55724 | Q35: ARDEN PCN
A36: U03153 | B36: BROUGHTON HEALTH ALLIANCE PCN | C36: 53113.47553 | D36: U03153 | E36: 01G | F36: NHS SALFORD CCG | K36: U03153 | L36: BROUGHTON HEALTH ALLIANCE PCN | M36: 01G | N36: NHS SALFORD CCG | P36: U07506 | Q36: ARDWICK AND LONGSIGHT PCN
A37: U03186 | B37: THE LEICESTER FOXES PCN | C37: 30817.28581 | D37: U03186 | E37: 04C | F37: NHS LEICESTER CITY CCG | K37: U03186 | L37: THE LEICESTER FOXES PCN | M37: 04C | N37: NHS LEICESTER CITY CCG | P37: U92581 | Q37: ARMLEY PCN
A38: U03298 | B38: RICHMONDSHIRE PCN | C38: 48428.5371 | D38: U03298 | E38: 42D | F38: NHS NORTH YORKSHIRE CCG | K38: U03298 | L38: RICHMONDSHIRE PCN | M38: 42D | N38: NHS NORTH YORKSHIRE CCG | P38: U51200 | Q38: ARNOLD AND CALVERTON PCN
A39: U03364 | B39: HAYWARDS HEATH VILLAGES PCN | C39: 29039.32873 | D39: U03364 | E39: 70F | F39: NHS WEST SUSSEX CCG | K39: U03364 | L39: HAYWARDS HEATH VILLAGES PCN | M39: 70F | N39: NHS WEST SUSSEX CCG | P39: U47851 | Q39: ARROW HEALTH PCN
A40: U03379 | B40: THORPE AND RANWORTH PCN | C40: 48472.22358 | D40: U03379 | E40: 06T | F40: NHS NORTH EAST ESSEX CCG | K40: U03379 | L40: THORPE AND RANWORTH PCN | M40: 06T | N40: NHS NORTH EAST ESSEX CCG | P40: U21339 | Q40: ARUN PCN
A41: U03551 | B41: MOTTINGHAM, DOWNHAM & CHISLEHURST PCN | C41: 33922.26579 | D41: U03551 | E41: 72Q | F41: NHS SOUTH EAST LONDON CCG | K41: U03551 | L41: MOTTINGHAM, DOWNHAM & CHISLEHURST PCN | M41: 72Q | N41: NHS SOUTH EAST LONDON CCG | P41: U49574 | Q41: ASCENT PCN
A42: U03653 | B42: FAIRLOP PCN | C42: 57091.3976 | D42: U03653 | E42: 08N | F42: NHS REDBRIDGE CCG | K42: U03653 | L42: FAIRLOP PCN | M42: 08N | N42: NHS REDBRIDGE CCG | P42: U14074 | Q42: ASCOT PCN
A43: U03810 | B43: ISLAND CITY PCN | C43: 44724.1395 | D43: U03810 | E43: 10R | F43: NHS PORTSMOUTH CCG | K43: U03810 | L43: ISLAND CITY PCN | M43: 10R | N43: NHS PORTSMOUTH CCG | P43: U85198 | Q43: ASHFIELD NORTH PCN
A44: U03824 | B44: HULL NEXUS PCN | C44: 74447.62812 | D44: U03824 | E44: 03F | F44: NHS HULL CCG | K44: U03824 | L44: HULL NEXUS PCN | M44: 03F | N44: NHS HULL CCG | P44: U53963 | Q44: ASHFIELD SOUTH PCN
A45: U03826 | B45: YORKSHIRE EAST PCN | C45: 44478.90889 | D45: U03826 | E45: 03Q | F45: NHS VALE OF YORK CCG | K45: U03826 | L45: YORKSHIRE EAST PCN | M45: 03Q | N45: NHS VALE OF YORK CCG | P45: U50767 | Q45: ASHFORD MEDICAL PARTNERSHIP PCN
A46: U03864 | B46: NORTH CORNWALL COAST | C46: 23343.70303 | D46: U03864 | E46: 11N | F46: NHS KERNOW CCG | K46: U03864 | L46: NORTH CORNWALL COAST | M46: 11N | N46: NHS KERNOW CCG | P46: U07648 | Q46: ASHFORD RURAL PCN
A47: U03892 | B47: FELIXSTOWE PCN | C47: 48417.59439 | D47: U03892 | E47: 06L | F47: NHS IPSWICH AND EAST SUFFOLK CCG | K47: U03892 | L47: FELIXSTOWE PCN | M47: 06L | N47: NHS IPSWICH AND EAST SUFFOLK CCG | P47: U87442 | Q47: ASHFORD STOUR PCN
A48: U03989 | B48: WHITLEY PCN | C48: 34265.22036 | D48: U03989 | E48: 15A | F48: NHS BERKSHIRE WEST CCG | K48: U03989 | L48: WHITLEY PCN | M48: 15A | N48: NHS BERKSHIRE WEST CCG | P48: U38271 | Q48: ASHTON PCN
A49: U04079 | B49: WEST READING VILLAGES PCN | C49: 42332.37234 | D49: U04079 | E49: 15A | F49: NHS BERKSHIRE WEST CCG | K49: U04079 | L49: WEST READING VILLAGES PCN | M49: 15A | N49: NHS BERKSHIRE WEST CCG | P49: U28765 | Q49: ASOP PCN
A50: U04154 | B50: NORTH NORFOLK 4 PCN | C50: 54298.54643 | D50: U04154 | E50: 26A | F50: NHS NORFOLK AND WAVENEY CCG | K50: U04154 | L50: NORTH NORFOLK 4 PCN | M50: 26A | N50: NHS NORFOLK AND WAVENEY CCG | P50: U16816 | Q50: ASPEN PCN
A51: U04443 | B51: WEST LEIGH PCN | C51: 53991.60519 | D51: U04443 | E51: 99G | F51: NHS SOUTHEND CCG | K51: U04443 | L51: WEST LEIGH PCN | M51: 99G | N51: NHS SOUTHEND CCG | P51: U18315 | Q51: AT MEDICS STREATHAM PCN
A52: U04545 | B52: SOUTHEND EAST PCN | C52: 35171.31789 | D52: U04545 | E52: 99G | F52: NHS SOUTHEND CCG | K52: U04545 | L52: SOUTHEND EAST PCN | M52: 99G | N52: NHS SOUTHEND CCG | P52: U34538 | Q52: ATTENBOROUGH & TUDOR PCN
A53: U04725 | B53: HAYWARDS HEATH CENTRAL PCN | C53: 28527.37313 | D53: U04725 | E53: 70F | F53: NHS WEST SUSSEX CCG | K53: U04725 | L53: HAYWARDS HEATH CENTRAL PCN | M53: 70F | N53: NHS WEST SUSSEX CCG | P53: U84277 | Q53: AVON VALLEY PCN
A54: U04784 | B54: WARWICKSHIRE EAST PCN | C54: 26946.50577 | D54: U04784 | E54: 05R | F54: NHS SOUTH WARWICKSHIRE CCG | K54: U04784 | L54: WARWICKSHIRE EAST PCN | M54: 05R | N54: NHS SOUTH WARWICKSHIRE CCG | P54: U88743 | Q54: AYLESBURY VALE SOUTH PCN
A55: U04862 | B55: WHITE HORSE BOTLEY PCN | C55: 32301.19572 | D55: U04862 | E55: 10Q | F55: NHS OXFORDSHIRE CCG | K55: U04862 | L55: WHITE HORSE BOTLEY PCN | M55: 10Q | N55: NHS OXFORDSHIRE CCG | P55: U19803 | Q55: BABYLON GP AT HAND PCN
A56: U04901 | B56: STONE & ECCLESHALL PCN | C56: 35486.8276 | D56: U04901 | E56: 05V | F56: NHS STAFFORD AND SURROUNDS CCG | K56: U04901 | L56: STONE & ECCLESHALL PCN | M56: 05V | N56: NHS STAFFORD AND SURROUNDS CCG | P56: U10998 | Q56: BACHS PCN
A57: U04914 | B57: PRESTON EAST PCN | C57: 37510.31956 | D57: U04914 | E57: 01E | F57: NHS GREATER PRESTON CCG | K57: U04914 | L57: PRESTON EAST PCN | M57: 01E | N57: NHS GREATER PRESTON CCG | P57: U42598 | Q57: BALHAM, TOOTING & FURZEDOWN PCN
A58: U04973 | B58: GARDEN CITY PCN | C58: 43867.76729 | D58: U04973 | E58: 91Q | F58: NHS KENT AND MEDWAY CCG | K58: U04973 | L58: GARDEN CITY PCN | M58: 91Q | N58: NHS KENT AND MEDWAY CCG | P58: U54948 | Q58: BALSALL HEATH, SPARKHILL & MOSELEY PCN
A59: U05001 | B59: LARWOOD & BAWTRY PCN | C59: 40389.61172 | D59: U05001 | E59: 02Q | F59: NHS BASSETLAW CCG | K59: U05001 | L59: LARWOOD & BAWTRY PCN | M59: 02Q | N59: NHS BASSETLAW CCG | P59: U23620 | Q59: BANBURY PCN
A60: U05048 | B60: NORTH HARDWICK BOLSOVER PCN | C60: 58343.68613 | D60: U05048 | E60: 15M | F60: NHS DERBY AND DERBYSHIRE CCG | K60: U05048 | L60: NORTH HARDWICK BOLSOVER PCN | M60: 15M | N60: NHS DERBY AND DERBYSHIRE CCG | P60: U42235 | Q60: BANSTEAD HEALTHCARE PCN
A61: U05340 | B61: THREE VALLEYS HEALTH PCN | C61: 65914.19942 | D61: U05340 | E61: 92G | F61: NHS BATH AND NORTH EAST SOMERSET, SWINDON AND WILTSHIRE CCG | K61: U05340 | L61: THREE VALLEYS HEALTH PCN | M61: 92G | N61: NHS BATH AND NORTH EAST SOMERSET, SWINDON AND WILTSHIRE CCG | P61: U27362 | Q61: BARKING & DAGENHAM EAST ONE PCN
A62: U05433 | B62: SOUTH NORFOLK HIP PCN | C62: 68324.57955 | D62: U05433 | E62: 26A | F62: NHS NORFOLK AND WAVENEY CCG | K62: U05433 | L62: SOUTH NORFOLK HIP PCN | M62: 26A | N62: NHS NORFOLK AND WAVENEY CCG | P62: U86966 | Q62: BARKING & DAGENHAM EAST PCN
A63: U05451 | B63: HACKNEY MARSHES PCN | C63: 47056.93501 | D63: U05451 | E63: 07T | F63: NHS CITY AND HACKNEY CCG | K63: U05451 | L63: HACKNEY MARSHES PCN | M63: 07T | N63: NHS CITY AND HACKNEY CCG | P63: U26744 | Q63: BARKING & DAGENHAM NEW WEST PCN
A64: U05458 | B64: SUNDERLAND WEST 2 PCN | C64: 42169.34406 | D64: U05458 | E64: 00P | F64: NHS SUNDERLAND CCG | K64: U05458 | L64: SUNDERLAND WEST 2 PCN | M64: 00P | N64: NHS SUNDERLAND CCG | P64: U55387 | Q64: BARKING & DAGENHAM NORTH PCN
A65: U05510 | B65: MALLING PCN | C65: 55425.45843 | D65: U05510 | E65: 91Q | F65: NHS KENT AND MEDWAY CCG | K65: U05510 | L65: MALLING PCN | M65: 91Q | N65: NHS KENT AND MEDWAY CCG | P65: U92874 | Q65: BARKING & DAGENHAM NORTH WEST PCN
A66: U05512 | B66: WEST NORTHUMBERLAND PCN | C66: 80115.08682 | D66: U05512 | E66: 00L | F66: NHS NORTHUMBERLAND CCG | K66: U05512 | L66: WEST NORTHUMBERLAND PCN | M66: 00L | N66: NHS NORTHUMBERLAND CCG | P66: U11211 | Q66: BARKING & DAGENHAM WEST PCN
A67: U05517 | B67: HWL NETWORK PCN | C67: 27822.52807 | D67: =A67 -> U05517 | E67: =VLOOKUP($A67,$K$2:$N$1255,3,FALSE) -> 00T | F67: =VLOOKUP($A67,$K$2:$N$1255,4,FALSE) -> NHS BOLTON CCG | K67: U05517 | L67: HWL NETWORK PCN | M67: 00T | N67: NHS BOLTON CCG | P67: U84655 | Q67: BARNET 1D PCN
A68: U05632 | B68: SEAFORD PCN | C68: 30193.95391 | D68: U05632 | E68: 97R | F68: NHS EAST SUSSEX CCG | K68: U05632 | L68: SEAFORD PCN | M68: 97R | N68: NHS EAST SUSSEX CCG | P68: U07605 | Q68: BARNET 1W PCN
A69: U05642 | B69: MILLENNIUM PCN | C69: 49210.54765 | D69: U05642 | E69: 04C | F69: NHS LEICESTER CITY CCG | K69: U05642 | L69: MILLENNIUM PCN | M69: 04C | N69: NHS LEICESTER CITY CCG | P69: U33392 | Q69: BARNET 2 PCN
A70: U05734 | B70: HANLEY, BUCKNALL & BENTILEE PCN | C70: 35216.91939 | D70: U05734 | E70: 05W | F70: NHS STOKE ON TRENT CCG | K70: U05734 | L70: HANLEY, BUCKNALL & BENTILEE PCN | M70: 05W | N70: NHS STOKE ON TRENT CCG | P70: U58538 | Q70: BARNET 3 PCN
A71: U05784 | B71: BROMPTON HEALTH PCN | C71: 62619.88041 | D71: U05784 | E71: 08Y | F71: NHS WEST LONDON CCG | K71: U05784 | L71: BROMPTON HEALTH PCN | M71: 08Y | N71: NHS WEST LONDON CCG | P71: U35438 | Q71: BARNET 4 PCN
A72: U05796 | B72: LEICESTER HEALTH FOCUS PCN | C72: 36757.76584 | D72: U05796 | E72: 04C | F72: NHS LEICESTER CITY CCG | K72: U05796 | L72: LEICESTER HEALTH FOCUS PCN | M72: 04C | N72: NHS LEICESTER CITY CCG | P72: U39686 | Q72: BARNET 5 PCN
A73: U05885 | B73: SOUTH CAMDEN PCN | C73: 34921.5503 | D73: U05885 | E73: 93C | F73: NHS NORTH CENTRAL LONDON CCG | K73: U05885 | L73: SOUTH CAMDEN PCN | M73: 93C | N73: NHS NORTH CENTRAL LONDON CCG | P73: U30079 | Q73: BARNET 6 PCN
A74: U05906 | B74: LEYLAND PCN | C74: 45011.67991 | D74: U05906 | E74: 00X | F74: NHS CHORLEY AND SOUTH RIBBLE CCG | K74: U05906 | L74: LEYLAND PCN | M74: 00X | N74: NHS CHORLEY AND SOUTH RIBBLE CCG | P74: U16464 | Q74: BARNSLEY PCN
A75: U06000 | B75: KNUTSFORD PCN | C75: 24171.48995 | D75: U06000 | E75: 27D | F75: NHS CHESHIRE CCG | K75: U06000 | L75: KNUTSFORD PCN | M75: 27D | N75: NHS CHESHIRE CCG | P75: U50322 | Q75: BARNSTAPLE ALLIANCE PCN
A76: U06079 | B76: ABBEY HEALTH PCN | C76: 24539.83792 | D76: U06079 | E76: 06N | F76: NHS HERTS VALLEYS CCG | K76: U06079 | L76: ABBEY HEALTH PCN | M76: 06N | N76: NHS HERTS VALLEYS CCG | P76: U26878 | Q76: BARRACK LANE & IVRY STREET PCN
A77: U06092 | B77: GREENWOOD PCN | C77: 55986.81386 | D77: U06092 | E77: 03A | F77: NHS GREATER HUDDERSFIELD CCG | K77: U06092 | L77: GREENWOOD PCN | M77: 03A | N77: NHS GREATER HUDDERSFIELD CCG | P77: U17992 | Q77: BARROW AND MILLOM PCN
A78: U06180 | B78: NORTH SOUTHWARK PCN | C78: 182057.5989 | D78: U06180 | E78: 72Q | F78: NHS SOUTH EAST LONDON CCG | K78: U06180 | L78: NORTH SOUTHWARK PCN | M78: 72Q | N78: NHS SOUTH EAST LONDON CCG | P78: U63770 | Q78: BATH INDEPENDENTS PCN
A79: U06243 | B79: TILBURY AND CHADWELL PCN | C79: 38133.59656 | D79: U06243 | E79: 07G | F79: NHS THURROCK CCG | K79: U06243 | L79: TILBURY AND CHADWELL PCN | M79: 07G | N79: NHS THURROCK CCG | P79: U63540 | Q79: BATLEY BIRSTALL PCN
A80: U06256 | B80: HIPC (HOLISTIC PATIENT CENTRED CARE) PCN | C80: 45867.05524 | D80: U06256 | E80: 05W | F80: NHS STOKE ON TRENT CCG | K80: U06256 | L80: HIPC (HOLISTIC PATIENT CENTRED CARE) PCN | M80: 05W | N80: NHS STOKE ON TRENT CCG | P80: U42154 | Q80: BATTERSEA PCN
A81: U06387 | B81: NEXUS (DEVON) PCN | C81: 38683.1374 | D81: U06387 | E81: 15N | F81: NHS DEVON CCG | K81: U06387 | L81: NEXUS (DEVON) PCN | M81: 15N | N81: NHS DEVON CCG | P81: U27624 | Q81: BAY PCN
A82: U06437 | B82: BYRON PCN | C82: 39363.72252 | D82: U06437 | E82: 52R | F82: NHS NOTTINGHAM AND NOTTINGHAMSHIRE CCG | K82: U06437 | L82: BYRON PCN | M82: 52R | N82: NHS NOTTINGHAM AND NOTTINGHAMSHIRE CCG | P82: U55399 | Q82: BAYWIDE PCN
A83: U06438 | B83: PCCO PCN | C83: 39765.48088 | D83: U06438 | E83: 15M | F83: NHS DERBY AND DERBYSHIRE CCG | K83: U06438 | L83: PCCO PCN | M83: 15M | N83: NHS DERBY AND DERBYSHIRE CCG | P83: U64232 | Q83: B-CONNECTED CARE PCN
A84: U06486 | B84: STOKES PCN | C84: 48215.73712 | D84: U06486 | E84: 15C | F84: NHS BRISTOL, NORTH SOMERSET AND SOUTH GLOUCESTERSHIRE CCG | K84: U06486 | L84: STOKES PCN | M84: 15C | N84: NHS BRISTOL, NORTH SOMERSET AND SOUTH GLOUCESTERSHIRE CCG | P84: U27086 | Q84: BD4+ PCN
A85: U06610 | B85: DUDLEY AND NETHERTON PCN | C85: 54674.18974 | D85: U06610 | E85: 05C | F85: NHS DUDLEY CCG | K85: U06610 | L85: DUDLEY AND NETHERTON PCN | M85: 05C | N85: NHS DUDLEY CCG | P85: U51667 | Q85: BEACON (CHARNWOOD) PCN
A86: U06816 | B86: EXETER CITY PCN | C86: 34252.35804 | D86: U06816 | E86: 15N | F86: NHS DEVON CCG | K86: U06816 | L86: EXETER CITY PCN | M86: 15N | N86: NHS DEVON CCG | P86: U68552 | Q86: BEACON MEDICAL GROUP PCN
A87: U06871 | B87: BURGESS HILL & VILLAGES PCN | C87: 50660.57397 | D87: U06871 | E87: 70F | F87: NHS WEST SUSSEX CCG | K87: U06871 | L87: BURGESS HILL & VILLAGES PCN | M87: 70F | N87: NHS WEST SUSSEX CCG | P87: U36188 | Q87: BECKENHAM PCN
A88: U06978 | B88: NEWHAM NORTH EAST 2 PCN | C88: 38677.47415 | D88: U06978 | E88: 08M | F88: NHS NEWHAM CCG | K88: U06978 | L88: NEWHAM NORTH EAST 2 PCN | M88: 08M | N88: NHS NEWHAM CCG | P88: U94317 | Q88: BEDWORTH AND BULKINGTON PCN
A89: U07003 | B89: RUMWORTH PCN | C89: 30884.91713 | D89: U07003 | E89: 00T | F89: NHS BOLTON CCG | K89: U07003 | L89: RUMWORTH PCN | M89: 00T | N89: NHS BOLTON CCG | P89: U16878 | Q89: BEESTON PCN
A90: U07032 | B90: NORTH STOCKTON PCN | C90: 50737.37381 | D90: U07032 | E90: 16C | F90: NHS TEES VALLEY CCG | K90: U07032 | L90: NORTH STOCKTON PCN | M90: 16C | N90: NHS TEES VALLEY CCG | P90: U64426 | Q90: BELGRAVE & SPINNEY HILL PCN
A91: U07140 | B91: APL BEXLEY PCN | C91: 36269.45158 | D91: U07140 | E91: 72Q | F91: NHS SOUTH EAST LONDON CCG | K91: U07140 | L91: APL BEXLEY PCN | M91: 72Q | N91: NHS SOUTH EAST LONDON CCG | P91: U61321 | Q91: BELPER PCN
A92: U07169 | B92: SHOREDITCH PARK PCN | C92: 55985.3549 | D92: U07169 | E92: 07T | F92: NHS CITY AND HACKNEY CCG | K92: U07169 | L92: SHOREDITCH PARK PCN | M92: 07T | N92: NHS CITY AND HACKNEY CCG | P92: U27924 | Q92: BENFLEET PCN
A93: U07199 | B93: EAST & CENTRAL BRIGHTON 1 PCN | C93: 33221.50237 | D93: U07199 | E93: 09D | F93: NHS BRIGHTON AND HOVE CCG | K93: U07199 | L93: EAST & CENTRAL BRIGHTON 1 PCN | M93: 09D | N93: NHS BRIGHTON AND HOVE CCG | P93: U02669 | Q93: BERKELEY VALE PCN
A94: U07392 | B94: NORTH CONNECT PCN | C94: 51564.99079 | D94: U07392 | E94: 08G | F94: NHS HILLINGDON CCG | K94: U07392 | L94: NORTH CONNECT PCN | M94: 08G | N94: NHS HILLINGDON CCG | P94: U44561 | Q94: BESTWOOD AND SHERWOOD PCN
A95: U07449 | B95: PORTSDOWN PCN | C95: 42917.93304 | D95: U07449 | E95: 10R | F95: NHS PORTSMOUTH CCG | K95: U07449 | L95: PORTSDOWN PCN | M95: 10R | N95: NHS PORTSMOUTH CCG | P95: U30913 | Q95: BEVERLEY PCN
A96: U07506 | B96: ARDWICK AND LONGSIGHT PCN | C96: 73212.79401 | D96: U07506 | E96: 14L | F96: NHS MANCHESTER CCG | K96: U07506 | L96: ARDWICK AND LONGSIGHT PCN | M96: 14L | N96: NHS MANCHESTER CCG | P96: U85348 | Q96: BEXHILL PCN
A97: U07605 | B97: BARNET 1W PCN | C97: 33350.54022 | D97: U07605 | E97: 93C | F97: NHS NORTH CENTRAL LONDON CCG | K97: U07605 | L97: BARNET 1W PCN | M97: 93C | N97: NHS NORTH CENTRAL LONDON CCG | P97: U83604 | Q97: BICESTER PCN
A98: U07607 | B98: CENTRAL SUTTON PCN | C98: 40862.109 | D98: U07607 | E98: 36L | F98: NHS SOUTH WEST LONDON CCG | K98: U07607 | L98: CENTRAL SUTTON PCN | M98: 36L | N98: NHS SOUTH WEST LONDON CCG | P98: U91979 | Q98: BILLERICAY PCN
A99: U07648 | B99: ASHFORD RURAL PCN | C99: 40490.81305 | D99: U07648 | E99: 91Q | F99: NHS KENT AND MEDWAY CCG | K99: U07648 | L99: ASHFORD RURAL PCN | M99: 91Q | N99: NHS KENT AND MEDWAY CCG | P99: U94460 | Q99: BILLINGHAM & NORTON PCN
A100: U07776 | B100: CHESTER EAST PCN | C100: 37168.92414 | D100: U07776 | E100: 27D | F100: NHS CHESHIRE CCG | K100: U07776 | L100: CHESTER EAST PCN | M100: 27D | N100: NHS CHESHIRE CCG | P100: U99194 | Q100: BIRKENHEAD PCN
A101: U07789 | B101: COVENTRY NORTH PCN | C101: 51129.29099 | D101: U07789 | E101: 05A | F101: NHS COVENTRY AND RUGBY CCG | K101: U07789 | L101: COVENTRY NORTH PCN | M101: 05A | N101: NHS COVENTRY AND RUGBY CCG | P101: U79433 | Q101: BIRMINGHAM EAST CENTRAL PCN
A102: U07842 | B102: EAST CLEVELAND PCN | C102: 49480.45116 | D102: U07842 | E102: 16C | F102: NHS TEES VALLEY CCG | K102: U07842 | L102: EAST CLEVELAND PCN | M102: 16C | N102: NHS TEES VALLEY CCG | P102: U76028 | Q102: BIRTLEY, OXFORD TERR & RAWLING RD PCN
A103: U07902 | B103: BRACKLEY & TOWCESTER PCN | C103: 40818.94088 | D103: U07902 | E103: 78H | F103: NHS NORTHAMPTONSHIRE CCG | K103: U07902 | L103: BRACKLEY & TOWCESTER PCN | M103: 78H | N103: NHS NORTHAMPTONSHIRE CCG | P103: U85067 | Q103: BISHOP AUCKLAND PCN
A104: U08085 | B104: EDEN (CUMBRIA) PCN | C104: 59901.57527 | D104: U08085 | E104: 01H | F104: NHS NORTH CUMBRIA CCG | K104: U08085 | L104: EDEN (CUMBRIA) PCN | M104: 01H | N104: NHS NORTH CUMBRIA CCG | P104: U23742 | Q104: BLACKBOURNE PCN
A105: U08086 | B105: PENDLE WEST PCN | C105: 49897.66473 | D105: U08086 | E105: 01A | F105: NHS EAST LANCASHIRE CCG | K105: U08086 | L105: PENDLE WEST PCN | M105: 01A | N105: NHS EAST LANCASHIRE CCG | P105: U48502 | Q105: BLACKBURN EAST PCN
A106: U08229 | B106: SOLAS PCN | C106: 34472.36252 | D106: U08229 | E106: 71E | F106: NHS LINCOLNSHIRE CCG | K106: U08229 | L106: SOLAS PCN | M106: 71E | N106: NHS LINCOLNSHIRE CCG | P106: U69841 | Q106: BLACKBURN NORTH PCN
A107: U08235 | B107: REGIS HEALTHCARE PCN | C107: 106496.2422 | D107: U08235 | E107: 70F | F107: NHS WEST SUSSEX CCG | K107: U08235 | L107: REGIS HEALTHCARE PCN | M107: 70F | N107: NHS WEST SUSSEX CCG | P107: U34816 | Q107: BLACKBURN WEST PCN
A108: U08248 | B108: BRIGANTES PCN | C108: 49040.16791 | D108: U08248 | E108: 03R | F108: NHS WAKEFIELD CCG | K108: U08248 | L108: BRIGANTES PCN | M108: 03R | N108: NHS WAKEFIELD CCG | P108: U00254 | Q108: BLACKHEATH AND CHARLTON PCN
A109: U08561 | B109: SOUTHAMPTON LIVING WELL PARTNERSHIP PCN | C109: 35225.39138 | D109: U08561 | E109: 10X | F109: NHS SOUTHAMPTON CCG | K109: U08561 | L109: SOUTHAMPTON LIVING WELL PARTNERSHIP PCN | M109: 10X | N109: NHS SOUTHAMPTON CCG | P109: U97645 | Q109: BLACKPOOL CENTRAL PCN
A110: U08579 | B110: HARPENDEN PCN | C110: 37405.41363 | D110: U08579 | E110: 06N | F110: NHS HERTS VALLEYS CCG | K110: U08579 | L110: HARPENDEN PCN | M110: 06N | N110: NHS HERTS VALLEYS CCG | P110: U47882 | Q110: BLACKPOOL CENTRAL WEST PCN
A111: U08711 | B111: GRAVESEND ALLIANCE PCN | C111: 49763.04947 | D111: U08711 | E111: 91Q | F111: NHS KENT AND MEDWAY CCG | K111: U08711 | L111: GRAVESEND ALLIANCE PCN | M111: 91Q | N111: NHS KENT AND MEDWAY CCG | P111: U82077 | Q111: BLACKPOOL NORTH PCN
A112: U08803 | B112: TOWER HAMLETS NETWORK 6 PCN | C112: 53593.3027 | D112: U08803 | E112: 08V | F112: NHS TOWER HAMLETS CCG | K112: U08803 | L112: TOWER HAMLETS NETWORK 6 PCN | M112: 08V | N112: NHS TOWER HAMLETS CCG | P112: U45809 | Q112: BLACKPOOL SOUTH PCN
A113: U08925 | B113: STAFFORD CENTRAL PCN | C113: 36832.9122 | D113: U08925 | E113: 05V | F113: NHS STAFFORD AND SURROUNDS CCG | K113: U08925 | L113: STAFFORD CENTRAL PCN | M113: 05V | N113: NHS STAFFORD AND SURROUNDS CCG | P113: U42510 | Q113: BLANDFORD PCN
A114: U09057 | B114: HYNDBURN RURAL PCN | C114: 35363.85847 | D114: U09057 | E114: 01A | F114: NHS EAST LANCASHIRE CCG | K114: U09057 | L114: HYNDBURN RURAL PCN | M114: 01A | N114: NHS EAST LANCASHIRE CCG | P114: U52261 | Q114: BLUE PCN
A115: U09071 | B115: GPNET5 PCN | C115: 34342.58726 | D115: U09071 | E115: 36L | F115: NHS SOUTH WEST LONDON CCG | K115: U09071 | L115: GPNET5 PCN | M115: 36L | N115: NHS SOUTH WEST LONDON CCG | P115: U25489 | Q115: BLYTH PCN
A116: U09072 | B116: PRESTON PARK COMMUNITY PCN | C116: 52071.44387 | D116: U09072 | E116: 09D | F116: NHS BRIGHTON AND HOVE CCG | K116: U09072 | L116: PRESTON PARK COMMUNITY PCN | M116: 09D | N116: NHS BRIGHTON AND HOVE CCG | P116: U11694 | Q116: BMC PASTON PCN
A117: U09081 | B117: FALMOUTH AND PENRYN PCN | C117: 45719.89818 | D117: U09081 | E117: 11N | F117: NHS KERNOW CCG | K117: U09081 | L117: FALMOUTH AND PENRYN PCN | M117: 11N | N117: NHS KERNOW CCG | P117: U65316 | Q117: BOLTON CENTRAL PCN
A118: U09100 | B118: GREATER PRESTON PCN | C118: 80694.94691 | D118: U09100 | E118: 01E | F118: NHS GREATER PRESTON CCG | K118: U09100 | L118: GREATER PRESTON PCN | M118: 01E | N118: NHS GREATER PRESTON CCG | P118: U46437 | Q118: BORDESLEY EAST PCN
A119: U09187 | B119: GRAND UNION PCN | C119: 65541.33609 | D119: U09187 | E119: 78H | F119: NHS NORTHAMPTONSHIRE CCG | K119: U09187 | L119: GRAND UNION PCN | M119: 78H | N119: NHS NORTHAMPTONSHIRE CCG | P119: U75268 | Q119: BOSTON PCN
A120: U09193 | B120: TOWER HAMLETS NETWORK 8 PCN | C120: 47149.03851 | D120: U09193 | E120: 08V | F120: NHS TOWER HAMLETS CCG | K120: U09193 | L120: TOWER HAMLETS NETWORK 8 PCN | M120: 08V | N120: NHS TOWER HAMLETS CCG | P120: U74544 | Q120: BOSWORTH PCN
A121: U09275 | B121: TAUNTON DEANE WEST PCN | C121: 30193.7677 | D121: U09275 | E121: 11X | F121: NHS SOMERSET CCG | K121: U09275 | L121: TAUNTON DEANE WEST PCN | M121: 11X | N121: NHS SOMERSET CCG | P121: U27515 | Q121: BOURNEMOUTH EAST COLLABORATIVE PCN
A122: U09521 | B122: OADBY & WIGSTON PCN | C122: 46431.28556 | D122: U09521 | E122: 03W | F122: NHS EAST LEICESTERSHIRE AND RUTLAND CCG | K122: U09521 | L122: OADBY & WIGSTON PCN | M122: 03W | N122: NHS EAST LEICESTERSHIRE AND RUTLAND CCG | P122: U27366 | Q122: BOURNVILLE AND NORTHFIELD PCN
A123: U09529 | B123: ROTHERHAM CENTRAL NORTH PCN | C123: 38216.76591 | D123: U09529 | E123: 03L | F123: NHS ROTHERHAM CCG | K123: U09529 | L123: ROTHERHAM CENTRAL NORTH PCN | M123: 03L | N123: NHS ROTHERHAM CCG | P123: U07902 | Q123: BRACKLEY & TOWCESTER PCN
A124: U09531 | B124: CHILTERN HILLS PCN | C124: 43615.51934 | D124: U09531 | E124: 06F | F124: NHS BEDFORDSHIRE CCG | K124: U09531 | L124: CHILTERN HILLS PCN | M124: 06F | N124: NHS BEDFORDSHIRE CCG | P124: U75847 | Q124: BRACKNELL AND DISTRICT PCN
A125: U09643 | B125: RUNCORN PCN | C125: 72994.84163 | D125: U09643 | E125: 01F | F125: NHS HALTON CCG | K125: U09643 | L125: RUNCORN PCN | M125: 01F | N125: NHS HALTON CCG | P125: U37316 | Q125: BRADFORD CITY 4 PCN
A126: U09727 | B126: DENGIE & SOUTH WOODHAM FERRERS PCN | C126: 44392.16933 | D126: U09727 | E126: 06Q | F126: NHS MID ESSEX CCG | K126: U09727 | L126: DENGIE & SOUTH WOODHAM FERRERS PCN | M126: 06Q | N126: NHS MID ESSEX CCG | P126: U78361 | Q126: BRADFORD CITY 5 PCN
A127: U09738 | B127: CAMBRIDGE NORTH VILLAGES PCN | C127: 46457.1263 | D127: U09738 | E127: 06H | F127: NHS CAMBRIDGESHIRE AND PETERBOROUGH CCG | K127: U09738 | L127: CAMBRIDGE NORTH VILLAGES PCN | M127: 06H | N127: NHS CAMBRIDGESHIRE AND PETERBOROUGH CCG | P127: U38216 | Q127: BRADFORD CITY 6 PCN
A128: U09772 | B128: RED KITE HEALTHCARE PCN | C128: 57256.60059 | D128: U09772 | E128: 78H | F128: NHS NORTHAMPTONSHIRE CCG | K128: U09772 | L128: RED KITE HEALTHCARE PCN | M128: 78H | N128: NHS NORTHAMPTONSHIRE CCG | P128: U17022 | Q128: BRADFORD NORTH WEST PCN
A129: U09847 | B129: NORTH COTSWOLDS PCN | C129: 35762.9557 | D129: U09847 | E129: 11M | F129: NHS GLOUCESTERSHIRE CCG | K129: U09847 | L129: NORTH COTSWOLDS PCN | M129: 11M | N129: NHS GLOUCESTERSHIRE CCG | P129: U82536 | Q129: BRADFORD ON AVON & MELKSHAM PCN
A130: U09883 | B130: FARNWORTH & KEARSLEY PCN | C130: 38885.3271 | D130: U09883 | E130: 00T | F130: NHS BOLTON CCG | K130: U09883 | L130: FARNWORTH & KEARSLEY PCN | M130: 00T | N130: NHS BOLTON CCG | P130: U65044 | Q130: BRADFORD SOUTH PCN
A131: U10033 | B131: NORTH EAST COASTAL PCN | C131: 32007.66386 | D131: =A131 -> U10033 | E131: =VLOOKUP($A131,$K$2:$N$1255,3,FALSE) -> 06L | F131: =VLOOKUP($A131,$K$2:$N$1255,4,FALSE) -> NHS IPSWICH AND EAST SUFFOLK CCG | K131: U10033 | L131: NORTH EAST COASTAL PCN | M131: 06L | N131: NHS IPSWICH AND EAST SUFFOLK CCG | P131: U80679 | Q131: BRAINTREE PCN
A132: U10128 | B132: SHEPPEY PCN | C132: 52809.7992 | D132: U10128 | E132: 91Q | F132: NHS KENT AND MEDWAY CCG | K132: U10128 | L132: SHEPPEY PCN | M132: 91Q | N132: NHS KENT AND MEDWAY CCG | P132: U37388 | Q132: BRAMHALL CHEADLE AND HULME PCN
A133: U10200 | B133: DARTFORD CENTRAL PCN | C133: 35991.0248 | D133: U10200 | E133: 91Q | F133: NHS KENT AND MEDWAY CCG | K133: U10200 | L133: DARTFORD CENTRAL PCN | M133: 91Q | N133: NHS KENT AND MEDWAY CCG | P133: U98623 | Q133: BRAMLEY, WORTLEY & MIDDLETON PCN
A134: U10335 | B134: BRUNEL PCN | C134: 46858.42588 | D134: U10335 | E134: 10R | F134: NHS PORTSMOUTH CCG | K134: U10335 | L134: BRUNEL PCN | M134: 10R | N134: NHS PORTSMOUTH CCG | P134: U31420 | Q134: BRECKLAND SURGERIES PCN
A135: U10339 | B135: HARROW COLLABORATIVE PCN | C135: 40766.95 | D135: U10339 | E135: 08E | F135: NHS HARROW CCG | K135: U10339 | L135: HARROW COLLABORATIVE PCN | M135: 08E | N135: NHS HARROW CCG | P135: U79938 | Q135: BREIGHTMET & LITTLE LEVER PCN
A136: U10386 | B136: WALLSEND PCN | C136: 43013.48431 | D136: U10386 | E136: 99C | F136: NHS NORTH TYNESIDE CCG | K136: U10386 | L136: WALLSEND PCN | M136: 99C | N136: NHS NORTH TYNESIDE CCG | P136: U89375 | Q136: BRENT CENTRAL KWH PCN
A137: U10430 | B137: SUDBURY PCN | C137: 35347.37379 | D137: U10430 | E137: 07K | F137: NHS WEST SUFFOLK CCG | K137: U10430 | L137: SUDBURY PCN | M137: 07K | N137: NHS WEST SUFFOLK CCG | P137: U57586 | Q137: BRENT NORTH KWH PCN
A138: U10439 | B138: WAKEFIELD HEALTH ALLIANCE CENTRAL PCN | C138: 52336.61891 | D138: U10439 | E138: 03R | F138: NHS WAKEFIELD CCG | K138: U10439 | L138: WAKEFIELD HEALTH ALLIANCE CENTRAL PCN | M138: 03R | N138: NHS WAKEFIELD CCG | P138: U77170 | Q138: BRENT SOUTH KWH PCN
A139: U10555 | B139: SWAFFHAM & DOWNHAM MARKET PCN | C139: 54176.18093 | D139: U10555 | E139: 26A | F139: NHS NORFOLK AND WAVENEY CCG | K139: U10555 | L139: SWAFFHAM & DOWNHAM MARKET PCN | M139: 26A | N139: NHS NORFOLK AND WAVENEY CCG | P139: U78157 | Q139: BRENT WEST KWH PCN
A140: U10602 | B140: WEST NORFOLK COASTAL PCN | C140: 30197.94594 | D140: U10602 | E140: 26A | F140: NHS NORFOLK AND WAVENEY CCG | K140: U10602 | L140: WEST NORFOLK COASTAL PCN | M140: 26A | N140: NHS NORFOLK AND WAVENEY CCG | P140: U79723 | Q140: BRENTWOOD PCN
A141: U10684 | B141: CHARD, ILMINSTER & LANGPORT (CLICK) PCN | C141: 51085.12807 | D141: U10684 | E141: 11X | F141: NHS SOMERSET CCG | K141: U10684 | L141: CHARD, ILMINSTER & LANGPORT (CLICK) PCN | M141: 11X | N141: NHS SOMERSET CCG | P141: U56341 | Q141: BRENTWORTH PCN
A142: U10730 | B142: KIRKBY PCN | C142: 59991.20149 | D142: U10730 | E142: 01J | F142: NHS KNOWSLEY CCG | K142: U10730 | L142: KIRKBY PCN | M142: 01J | N142: NHS KNOWSLEY CCG | P142: U84294 | Q142: BRIDGE VIEW PCN
A143: U10743 | B143: KENILWORTH AND WARWICK PCN | C143: 58944.29477 | D143: U10743 | E143: 05R | F143: NHS SOUTH WARWICKSHIRE CCG | K143: U10743 | L143: KENILWORTH AND WARWICK PCN | M143: 05R | N143: NHS SOUTH WARWICKSHIRE CCG | P143: U34632 | Q143: BRIDGEDALE SOUTH RIBBLE PCN
A144: U10748 | B144: NEWGATE MEDICAL GROUP PCN | C144: 33827.07391 | D144: U10748 | E144: 02Q | F144: NHS BASSETLAW CCG | K144: U10748 | L144: NEWGATE MEDICAL GROUP PCN | M144: 02Q | N144: NHS BASSETLAW CCG | P144: U81930 | Q144: BRIDGWATER PCN
A145: U10791 | B145: CHORLEY AND SOUTH RIBBLE HEALTH PCN | C145: 11259.63796 | D145: U10791 | E145: 00X | F145: NHS CHORLEY AND SOUTH RIBBLE CCG | K145: U10791 | L145: CHORLEY AND SOUTH RIBBLE HEALTH PCN | M145: 00X | N145: NHS CHORLEY AND SOUTH RIBBLE CCG | P145: U56223 | Q145: BRIDLINGTON PCN
A146: U10827 | B146: TRINITY HEALTH GROUP PCN | C146: 57151.12597 | D146: U10827 | E146: 03R | F146: NHS WAKEFIELD CCG | K146: U10827 | L146: TRINITY HEALTH GROUP PCN | M146: 03R | N146: NHS WAKEFIELD CCG | P146: U66146 | Q146: BRIERLEY HILL PCN
A147: U10834 | B147: REDDITCH & BROMSGROVE NIGHTINGALES PCN | C147: 41029.94563 | D147: U10834 | E147: 18C | F147: NHS HEREFORDSHIRE AND WORCESTERSHIRE CCG | K147: U10834 | L147: REDDITCH & BROMSGROVE NIGHTINGALES PCN | M147: 18C | N147: NHS HEREFORDSHIRE AND WORCESTERSHIRE CCG | P147: U08248 | Q147: BRIGANTES PCN
A148: U10847 | B148: EYNSHAM & WITNEY PCN | C148: 50045.51389 | D148: U10847 | E148: 10Q | F148: NHS OXFORDSHIRE CCG | K148: U10847 | L148: EYNSHAM & WITNEY PCN | M148: 10Q | N148: NHS OXFORDSHIRE CCG | P148: U55014 | Q148: BRIGHTON CLUSTER 5 PCN
A149: U10995 | B149: RURAL WEST PCN | C149: 38243.16053 | D149: U10995 | E149: 10J | F149: NHS NORTH HAMPSHIRE CCG | K149: U10995 | L149: RURAL WEST PCN | M149: 10J | N149: NHS NORTH HAMPSHIRE CCG | P149: U22426 | Q149: BRIGHTON II PCN
A150: U10998 | B150: BACHS PCN | C150: 62436.88372 | D150: U10998 | E150: 52R | F150: NHS NOTTINGHAM AND NOTTINGHAMSHIRE CCG | K150: U10998 | L150: BACHS PCN | M150: 52R | N150: NHS NOTTINGHAM AND NOTTINGHAMSHIRE CCG | P150: U33963 | Q150: BRISTOL INNER CITY PCN
A151: U11059 | B151: LEWISHAM CARE PARTNERSHIP PCN | C151: 49518.28402 | D151: U11059 | E151: 72Q | F151: NHS SOUTH EAST LONDON CCG | K151: U11059 | L151: LEWISHAM CARE PARTNERSHIP PCN | M151: 72Q | N151: NHS SOUTH EAST LONDON CCG | P151: U87914 | Q151: BRIXHAM AND PAIGNTON PCN
A152: U11103 | B152: YEOVIL PCN | C152: 50023.0698 | D152: U11103 | E152: 11X | F152: NHS SOMERSET CCG | K152: U11103 | L152: YEOVIL PCN | M152: 11X | N152: NHS SOMERSET CCG | P152: U36779 | Q152: BRIXTON AND CLAPHAM PARK PCN
A153: U11112 | B153: WANSBECK PCN | C153: 50934.88649 | D153: U11112 | E153: 00L | F153: NHS NORTHUMBERLAND CCG | K153: U11112 | L153: WANSBECK PCN | M153: 00L | N153: NHS NORTHUMBERLAND CCG | P153: U71206 | Q153: BROCKLEBANK PCN
A154: U11176 | B154: DENE AND STOUR VALLEYS PCN | C154: 31180.63649 | D154: U11176 | E154: 05R | F154: NHS SOUTH WARWICKSHIRE CCG | K154: U11176 | L154: DENE AND STOUR VALLEYS PCN | M154: 05R | N154: NHS SOUTH WARWICKSHIRE CCG | P154: U43112 | Q154: BROMLEY CONNECT PCN
A155: U11181 | B155: WINCHESTER RURAL SOUTH PCN | C155: 53686.96157 | D155: U11181 | E155: 11A | F155: NHS WEST HAMPSHIRE CCG | K155: U11181 | L155: WINCHESTER RURAL SOUTH PCN | M155: 11A | N155: NHS WEST HAMPSHIRE CCG | P155: U05784 | Q155: BROMPTON HEALTH PCN
A156: U11211 | B156: BARKING & DAGENHAM WEST PCN | C156: 37604.82959 | D156: U11211 | E156: 07L | F156: NHS BARKING AND DAGENHAM CCG | K156: U11211 | L156: BARKING & DAGENHAM WEST PCN | M156: 07L | N156: NHS BARKING AND DAGENHAM CCG | P156: U03153 | Q156: BROUGHTON HEALTH ALLIANCE PCN
A157: U11269 | B157: RIBBLESDALE PCN | C157: 40746.1088 | D157: U11269 | E157: 01A | F157: NHS EAST LANCASHIRE CCG | K157: U11269 | L157: RIBBLESDALE PCN | M157: 01A | N157: NHS EAST LANCASHIRE CCG | P157: U38328 | Q157: BROXBOURNE ALLIANCE PCN
A158: U11373 | B158: NEWHAM CENTRAL PCN | C158: 28949.4515 | D158: U11373 | E158: 08M | F158: NHS NEWHAM CCG | K158: U11373 | L158: NEWHAM CENTRAL PCN | M158: 08M | N158: NHS NEWHAM CCG | P158: U78462 | Q158: BRUNEL HEALTH GROUP PCN1
A159: U11393 | B159: WETHERBY PCN | C159: 37284.24676 | D159: U11393 | E159: 15F | F159: NHS LEEDS CCG | K159: U11393 | L159: WETHERBY PCN | M159: 15F | N159: NHS LEEDS CCG | P159: U71014 | Q159: BRUNEL HEALTH GROUP PCN2
A160: U11559 | B160: HARNESS SOUTH PCN | C160: 68840.97701 | D160: U11559 | E160: 07P | F160: NHS BRENT CCG | K160: U11559 | L160: HARNESS SOUTH PCN | M160: 07P | N160: NHS BRENT CCG | P160: U32901 | Q160: BRUNEL HEALTH GROUP PCN3
A161: U11602 | B161: HORWICH NETWORK PCN | C161: 37185.97352 | D161: U11602 | E161: 00T | F161: NHS BOLTON CCG | K161: U11602 | L161: HORWICH NETWORK PCN | M161: 00T | N161: NHS BOLTON CCG | P161: U28791 | Q161: BRUNEL HEALTH GROUP PCN4
A162: U11614 | B162: WARWICKSHIRE RURAL PCN | C162: 38323.07087 | D162: U11614 | E162: 05H | F162: NHS WARWICKSHIRE NORTH CCG | K162: U11614 | L162: WARWICKSHIRE RURAL PCN | M162: 05H | N162: NHS WARWICKSHIRE NORTH CCG | P162: U10335 | Q162: BRUNEL PCN
A163: U11684 | B163: RAMSGATE PCN | C163: 56138.74941 | D163: U11684 | E163: 91Q | F163: NHS KENT AND MEDWAY CCG | K163: U11684 | L163: RAMSGATE PCN | M163: 91Q | N163: NHS KENT AND MEDWAY CCG | P163: U63129 | Q163: BULWELL AND TOP VALLEY PCN
A164: U11690 | B164: RIVERVIEW HEALTH PCN | C164: 76593.97907 | D164: U11690 | E164: 72Q | F164: NHS SOUTH EAST LONDON CCG | K164: U11690 | L164: RIVERVIEW HEALTH PCN | M164: 72Q | N164: NHS SOUTH EAST LONDON CCG | P164: U06871 | Q164: BURGESS HILL & VILLAGES PCN
A165: U11694 | B165: BMC PASTON PCN | C165: 42288.69138 | D165: U11694 | E165: 06H | F165: NHS CAMBRIDGESHIRE AND PETERBOROUGH CCG | K165: U11694 | L165: BMC PASTON PCN | M165: 06H | N165: NHS CAMBRIDGESHIRE AND PETERBOROUGH CCG | P165: U31228 | Q165: BURMANTOFTS, HAREHILLS & RICHMOND HILL PCN
A166: U11746 | B166: SWB NEWCOMEN PCN | C166: 42634.16617 | D166: U11746 | E166: 05L | F166: NHS SANDWELL AND WEST BIRMINGHAM CCG | K166: U11746 | L166: SWB NEWCOMEN PCN | M166: 05L | N166: NHS SANDWELL AND WEST BIRMINGHAM CCG | P166: U31823 | Q166: BURNLEY EAST PCN
A167: U11781 | B167: WEST BERKSHIRE RURAL PCN | C167: 24082.45285 | D167: U11781 | E167: 15A | F167: NHS BERKSHIRE WEST CCG | K167: U11781 | L167: WEST BERKSHIRE RURAL PCN | M167: 15A | N167: NHS BERKSHIRE WEST CCG | P167: U69695 | Q167: BURNLEY WEST PCN
A168: U11864 | B168: WOODSLEY PCN | C168: 65133.43098 | D168: U11864 | E168: 15F | F168: NHS LEEDS CCG | K168: U11864 | L168: WOODSLEY PCN | M168: 15F | N168: NHS LEEDS CCG | P168: U46695 | Q168: BURNTWOOD PCN
A169: U12169 | B169: NORTH BLABY PCN | C169: 58940.16497 | D169: U12169 | E169: 03W | F169: NHS EAST LEICESTERSHIRE AND RUTLAND CCG | K169: U12169 | L169: NORTH BLABY PCN | M169: 03W | N169: NHS EAST LEICESTERSHIRE AND RUTLAND CCG | P169: U49226 | Q169: BURY PCN
A170: U12199 | B170: EAST HEREFORDSHIRE PCN | C170: 33270.66446 | D170: U12199 | E170: 18C | F170: NHS HEREFORDSHIRE AND WORCESTERSHIRE CCG | K170: U12199 | L170: EAST HEREFORDSHIRE PCN | M170: 18C | N170: NHS HEREFORDSHIRE AND WORCESTERSHIRE CCG | P170: U98785 | Q170: BURY ST EDMONDS PCN
A171: U12200 | B171: CANNOCK NORTH PCN | C171: 42663.46123 | D171: U12200 | E171: 04Y | F171: NHS CANNOCK CHASE CCG | K171: U12200 | L171: CANNOCK NORTH PCN | M171: 04Y | N171: NHS CANNOCK CHASE CCG | P171: U06437 | Q171: BYRON PCN
A172: U12365 | B172: SEDGEFIELD 2 PCN | C172: 66473.94533 | D172: U12365 | E172: 84H | F172: NHS COUNTY DURHAM CCG | K172: U12365 | L172: SEDGEFIELD 2 PCN | M172: 84H | N172: NHS COUNTY DURHAM CCG | P172: U63844 | Q172: BYTES PCN
A173: U12376 | B173: HEELEY PLUS PCN | C173: 48051.56161 | D173: U12376 | E173: 03N | F173: NHS SHEFFIELD CCG | K173: U12376 | L173: HEELEY PLUS PCN | M173: 03N | N173: NHS SHEFFIELD CCG | P173: U53279 | Q173: CALDER & RYBURN PCN
A174: U12413 | B174: EAST LINDSEY PCN | C174: 97962.42358 | D174: U12413 | E174: 71E | F174: NHS LINCOLNSHIRE CCG | K174: U12413 | L174: EAST LINDSEY PCN | M174: 71E | N174: NHS LINCOLNSHIRE CCG | P174: U68450 | Q174: CALNE PCN
A175: U12548 | B175: REGENT HEALTH PCN | C175: 62400.72423 | D175: U12548 | E175: 09A | F175: NHS CENTRAL LONDON (WESTMINSTER) CCG | K175: U12548 | L175: REGENT HEALTH PCN | M175: 09A | N175: NHS CENTRAL LONDON (WESTMINSTER) CCG | P175: U88254 | Q175: CAM MEDICAL PCN
A176: U12553 | B176: AEGROS HEALTH PCN | C176: 33173.00938 | D176: U12553 | E176: 06Q | F176: NHS MID ESSEX CCG | K176: U12553 | L176: AEGROS HEALTH PCN | M176: 06Q | N176: NHS MID ESSEX CCG | P176: U65941 | Q176: CAMBRIDGE CITY 4 PCN
A177: U12563 | B177: RUSHCLIFFE PCN | C177: 127447.8517 | D177: U12563 | E177: 52R | F177: NHS NOTTINGHAM AND NOTTINGHAMSHIRE CCG | K177: U12563 | L177: RUSHCLIFFE PCN | M177: 52R | N177: NHS NOTTINGHAM AND NOTTINGHAMSHIRE CCG | P177: U71777 | Q177: CAMBRIDGE CITY PCN
A178: U12754 | B178: SOUTH EAST OXFORD HEALTH ALLIANCE (SEOxHA) PCN | C178: 39455.94671 | D178: U12754 | E178: 10Q | F178: NHS OXFORDSHIRE CCG | K178: U12754 | L178: SOUTH EAST OXFORD HEALTH ALLIANCE (SEOxHA) PCN | M178: 10Q | N178: NHS OXFORDSHIRE CCG | P178: U09738 | Q178: CAMBRIDGE NORTH VILLAGES PCN
A179: U12833 | B179: HEALTHIER SOUTH WIRRAL PCN | C179: 54146.82303 | D179: U12833 | E179: 12F | F179: NHS WIRRAL CCG | K179: U12833 | L179: HEALTHIER SOUTH WIRRAL PCN | M179: 12F | N179: NHS WIRRAL CCG | P179: U98116 | Q179: CAMROSE, GILLIES & HACKWOOD PARTNERSHIP PCN
A180: U12920 | B180: HARINGEY - NORTH WEST PCN | C180: 36893.41771 | D180: U12920 | E180: 93C | F180: NHS NORTH CENTRAL LONDON CCG | K180: U12920 | L180: HARINGEY - NORTH WEST PCN | M180: 93C | N180: NHS NORTH CENTRAL LONDON CCG | P180: U32831 | Q180: CANALSIDE HEALTH & WELLBEING NETWORK PCN
A181: U12949 | B181: SYNERGY HEALTH PCN | C181: 28838.14445 | D181: U12949 | E181: 52R | F181: NHS NOTTINGHAM AND NOTTINGHAMSHIRE CCG | K181: U12949 | L181: SYNERGY HEALTH PCN | M181: 52R | N181: NHS NOTTINGHAM AND NOTTINGHAMSHIRE CCG | P181: U37262 | Q181: CANBURY CHURCHILL ORCHARD BERRYLANDS PCN
A182: U12951 | B182: LEEK & BIDDULPH PCN | C182: 55026.43223 | D182: U12951 | E182: 05G | F182: NHS NORTH STAFFORDSHIRE CCG | K182: U12951 | L182: LEEK & BIDDULPH PCN | M182: 05G | N182: NHS NORTH STAFFORDSHIRE CCG | P182: U12200 | Q182: CANNOCK NORTH PCN
A183: U13032 | B183: FENS & BRECKS PCN | C183: 43572.17045 | D183: U13032 | E183: 26A | F183: NHS NORFOLK AND WAVENEY CCG | K183: U13032 | L183: FENS & BRECKS PCN | M183: 26A | N183: NHS NORFOLK AND WAVENEY CCG | P183: U88414 | Q183: CANNOCK VILLAGES PCN
A184: U13098 | B184: MILES PLATTING NEWTON HEATH & MOSTON PCN | C184: 49058.83437 | D184: U13098 | E184: 14L | F184: NHS MANCHESTER CCG | K184: U13098 | L184: MILES PLATTING NEWTON HEATH & MOSTON PCN | M184: 14L | N184: NHS MANCHESTER CCG | P184: U24388 | Q184: CANTAB MEDICAL PRACTICES PCN
A185: U13205 | B185: WREKIN PCN | C185: 47190.88791 | D185: U13205 | E185: 05X | F185: NHS TELFORD AND WREKIN CCG | K185: U13205 | L185: WREKIN PCN | M185: 05X | N185: NHS TELFORD AND WREKIN CCG | P185: U73009 | Q185: CANTERBURY NORTH PCN
A186: U13245 | B186: PORTER VALLEY PCN | C186: 38353.08543 | D186: U13245 | E186: 03N | F186: NHS SHEFFIELD CCG | K186: U13245 | L186: PORTER VALLEY PCN | M186: 03N | N186: NHS SHEFFIELD CCG | P186: U84081 | Q186: CANTERBURY SOUTH PCN
A187: U13456 | B187: YATE & FRAMPTON PCN | C187: 54735.30821 | D187: U13456 | E187: 15C | F187: NHS BRISTOL, NORTH SOMERSET AND SOUTH GLOUCESTERSHIRE CCG | K187: U13456 | L187: YATE & FRAMPTON PCN | M187: 15C | N187: NHS BRISTOL, NORTH SOMERSET AND SOUTH GLOUCESTERSHIRE CCG | P187: U84454 | Q187: CANVEY PCN
A188: U13557 | B188: NORWICH PCN | C188: 223903.3479 | D188: U13557 | E188: 26A | F188: NHS NORFOLK AND WAVENEY CCG | K188: U13557 | L188: NORWICH PCN | M188: 26A | N188: NHS NORFOLK AND WAVENEY CCG | P188: U57300 | Q188: CARE COLLABORATIVE (REDHILL) PCN
A189: U13655 | B189: SOUTH BIRMINGHAM ALLIANCE PCN | C189: 72735.56255 | D189: U13655 | E189: 15E | F189: NHS BIRMINGHAM AND SOLIHULL CCG | K189: U13655 | L189: SOUTH BIRMINGHAM ALLIANCE PCN | M189: 15E | N189: NHS BIRMINGHAM AND SOLIHULL CCG | P189: U52891 | Q189: CARE ENTERPRISE PCN
A190: U13720 | B190: GATESHEAD EAST PCN | C190: 34879.11203 | D190: U13720 | E190: 13T | F190: NHS NEWCASTLE GATESHEAD CCG | K190: U13720 | L190: GATESHEAD EAST PCN | M190: 13T | N190: NHS NEWCASTLE GATESHEAD CCG | P190: U67045 | Q190: CARE KENT PCN
A191: U13761 | B191: THE RIDGE PCN | C191: 42783.72017 | D191: U13761 | E191: 91Q | F191: NHS KENT AND MEDWAY CCG | K191: U13761 | L191: THE RIDGE PCN | M191: 91Q | N191: NHS KENT AND MEDWAY CCG | P191: U76772 | Q191: CARILLON PCN
A192: U13771 | B192: PETERBOROUGH PARTNERSHIPS PCN | C192: 36188.10205 | D192: U13771 | E192: 06H | F192: NHS CAMBRIDGESHIRE AND PETERBOROUGH CCG | K192: U13771 | L192: PETERBOROUGH PARTNERSHIPS PCN | M192: 06H | N192: NHS CAMBRIDGESHIRE AND PETERBOROUGH CCG | P192: U74819 | Q192: CARITAS MEDICAL PCN
A193: U13952 | B193: CENTRAL WORTHING PRACTICES PCN | C193: 40760.95821 | D193: U13952 | E193: 70F | F193: NHS WEST SUSSEX CCG | K193: U13952 | L193: CENTRAL WORTHING PRACTICES PCN | M193: 70F | N193: NHS WEST SUSSEX CCG | P193: U92223 | Q193: CARLISLE HEALTHCARE PCN
A194: U13956 | B194: CHELTENHAM PERIPHERAL PCN | C194: 53172.24734 | D194: U13956 | E194: 11M | F194: NHS GLOUCESTERSHIRE CCG | K194: U13956 | L194: CHELTENHAM PERIPHERAL PCN | M194: 11M | N194: NHS GLOUCESTERSHIRE CCG | P194: U66688 | Q194: CARLISLE PCN
A195: U13990 | B195: RIPON & MASHAM PCN | C195: 30006.10219 | D195: =A195 -> U13990 | E195: =VLOOKUP($A195,$K$2:$N$1255,3,FALSE) -> 42D | F195: =VLOOKUP($A195,$K$2:$N$1255,4,FALSE) -> NHS NORTH YORKSHIRE CCG | K195: U13990 | L195: RIPON & MASHAM PCN | M195: 42D | N195: NHS NORTH YORKSHIRE CCG | P195: U00639 | Q195: CARLISLE RURAL PCN
A196: U14006 | B196: VICTORIA PCN | C196: 44835.4823 | D196: U14006 | E196: 01W | F196: NHS STOCKPORT CCG | K196: U14006 | L196: VICTORIA PCN | M196: 01W | N196: NHS STOCKPORT CCG | P196: U50573 | Q196: CARNFORTH AND MILNTHORPE PCN
A197: U14045 | B197: EAST WARRINGTON PCN | C197: 32818.72806 | D197: U14045 | E197: 02E | F197: NHS WARRINGTON CCG | K197: U14045 | L197: EAST WARRINGTON PCN | M197: 02E | N197: NHS WARRINGTON CCG | P197: U87787 | Q197: CARSHALTON PCN
A198: U14062 | B198: WEST HOVE PCN | C198: 47813.54075 | D198: U14062 | E198: 09D | F198: NHS BRIGHTON AND HOVE CCG | K198: U14062 | L198: WEST HOVE PCN | M198: 09D | N198: NHS BRIGHTON AND HOVE CCG | P198: U63186 | Q198: CAVERSHAM PCN
A199: U14074 | B199: ASCOT PCN | C199: 31444.84121 | D199: U14074 | E199: 15D | F199: NHS EAST BERKSHIRE CCG | K199: U14074 | L199: ASCOT PCN | M199: 15D | N199: NHS EAST BERKSHIRE CCG | P199: U35513 | Q199: CELADINE HEALTH & METROCARE PCN
A200: U14261 | B200: POOLE BAY & BOURNEMOUTH PCN | C200: 37403.74167 | D200: U14261 | E200: 11J | F200: NHS DORSET CCG | K200: U14261 | L200: POOLE BAY & BOURNEMOUTH PCN | M200: 11J | N200: NHS DORSET CCG | P200: U24247 | Q200: CENTRAL & WEST (IW) PCN
... 1066 more rows
